{"text_format":"1","workbook":"xlsx","n_sheets":21,"sheets":["Cover Page","Contents","Facility Info","Operational Summary","Operational Data","Perf. Form 1","Energy Form 1","Permit Compliance","Improvements","Public Liasion","CO2 N20","Residue Quality ","Water","Air (periodic)","Air (CEMS)","HCl","SO2","NOx","TOC","CO 95% 10 min","NH3"],"not_rendered":{"charts":6,"images":3,"macros":1,"external_links":0,"defined_names":21,"comments":0,"pivot_tables":0},"unopened":[],"bounds":{"document_bytes":16777216,"sheet_cells":100000,"rows_first":2000,"rows_last":500,"rows_between":2000,"halvings":0,"cell_chars":16384,"cell_head_chars":4096},"cells_cut":0,"cells_raw":0,"read":"whole","date_system":"1900"}

{"sheet":"Cover Page","index":0,"n_rows":53,"n_cols":14,"rows_kept":53,"cut":false,"hidden":false,"merged":[[48,2,48,3],[48,6,48,8],[52,2,52,3],[36,1,36,8],[40,2,40,8],[42,2,42,4],[44,2,44,4],[46,2,46,3],[46,6,46,8],[13,13,18,15],[34,1,34,8],[0,3,5,6],[7,1,23,8],[28,1,28,8],[30,1,30,8],[32,1,32,8]]}
[null,null,null,"Add company logo"]
[null,null,null,null,null,null,null,null,null,null,null,null,null,"Version 22.2"]
[]
[]
[]
[]
[]
[null,"Add photo"]
[]
[]
[]
[]
[null,null,null,null,null,null,null,null,null,null,null,null,null,"Notes:"]
[null,null,null,null,null,null,null,null,null,null,null,null,null,"This template may require adjustments by individual operators to meet specific reporting requirements as defined in the site Permit(s)"]
[]
[]
[]
[]
[]
[]
[]
[]
[]
[]
[]
[]
[]
[]
[null,"Annual Performance Report 2022"]
[]
[null,"Permit EPR/BK0825UI"]
[]
[null,"Riverside Resource Recovery Facility"]
[]
[]
[]
[null,"Cory"]
[]
[null,"Year:",2022]
[]
[null,"Address:","Norman Road, Belvedere, Bexley, DA17 6JY"]
[]
[null,"Tel: ","0208 320 3310"]
[]
[null,"Email: ","enquiries@corygroup.co.uk"]
[]
[null,"Prepared by:","G. Jack",null,null,"Position:","Process Engineer"]
[]
[null,"Approved by:","S. Taynton",null,null,"Position:","Operations Manager"]
[]
[null,"Version:",1]
[]
[null,"Issue Date:","2023-01-15"]

{"sheet":"Contents","index":1,"n_rows":44,"n_cols":11,"rows_kept":44,"cut":false,"hidden":false,"merged":[[43,0,46,9],[36,1,36,6],[37,1,37,6],[38,1,38,6],[39,1,39,6],[40,1,40,6],[41,1,41,6],[11,1,11,6],[12,1,12,6],[14,1,14,6],[35,1,35,6],[21,1,21,6],[22,1,22,6],[23,1,23,6],[26,1,26,6],[27,1,27,6],[28,1,28,6],[29,1,29,6],[30,1,30,6],[31,1,31,6],[34,1,34,6],[20,1,20,6],[13,1,13,6],[4,10,7,14],[8,1,8,6],[3,1,3,6],[4,1,4,6],[5,1,5,6],[6,1,6,6],[7,1,7,6],[15,1,15,6],[16,1,16,6],[17,1,17,6],[18,1,18,6],[19,1,19,6],[9,1,9,6],[10,1,10,6]]}
[{"$f":"+'Cover Page'!$B$29","v":"Annual Performance Report 2022"},null,null,null,{"$f":"+'Cover Page'!$B$33","v":"Riverside Resource Recovery Facility"}]
[]
["Contents",null,null,null,null,null,null,null,null,null,"Notes:"]
["Section","Subject",null,null,null,null,null,"Page ",null,null,"Section references and Page nos. to be inserted"]
[null,"Facility Information",null,null,null,null,null,3,null,null,"Sections and Subjects may require adjustment by individual operators to meet specific reporting requirements as defined in the sites Permit(s)"]
[null,"Operational Summary",null,null,null,null,null,4]
[null,"Operational Data",null,null,null,null,null,5]
[null,"Performance Form 1",null,null,null,null,null,6]
[null,"Energy Form 1",null,null,null,null,null,7]
[null,"Permit Compliance",null,null,null,null,null,8]
[null,"Improvements",null,null,null,null,null,9]
[null,"Public Liasion",null,null,null,null,null,10]
[null,"Residue Quality - Optional",null,null,null,null,null,11]
[null,"Carbon Dioxide Emissions",null,null,null,null,null,12]
[null,"Emissions to Water",null,null,null,null,null,13]
[null,"Emissions to Air (periodically monitored)",null,null,null,null,null,14]
[null,"Emissions to Air (continuously monitored)",null,null,null,null,null,15]
[null,"Hydrogen Chloride emissions",null,null,null,null,null,16]
[null,"Sulphur Dioxdie emsissions",null,null,null,null,null,17]
[null,"Oxides of Notrigen emissions",null,null,null,null,null,18]
[null,"Total Organic Carbon emissions",null,null,null,null,null,19]
[null,"Carbon Monoxide emissions",null,null,null,null,null,20]
[null,"Ammonia emissions",null,null,null,null,null,21]
[]
[]
["Version Control"]
["Section","Information",null,null,null,null,null,"Date"]
[]
[]
[]
[]
[]
[]
["Distribution"]
["Copy","Name, Role",null,null,null,null,null,"No."]
[1,"John Tollervey, Environment Agency Installations Officer"]
[1,"Dougie Sutherland, CEO"]
[1,"Mark Greenwood, Director Health, Safety, Environment & Quality Assurance"]
[1,"David Crawford, Plant Manager"]
[]
[]
[]
[]
["This report is required under the Industrial Emissions Directive’s Article 55(2) requirements on reporting and public information on waste incineration plants and co-incineration plants, which require the operator to produce an annual report on the functioning and monitoring of the plant and make it available to the public. "]

{"sheet":"Facility Info","index":2,"n_rows":61,"n_cols":11,"rows_kept":61,"cut":false,"hidden":false,"merged":[[56,0,59,8],[60,0,61,8],[4,0,17,8],[4,10,13,13],[21,10,30,13],[21,0,23,8],[24,0,26,8],[27,0,31,8],[32,0,36,8],[37,0,42,8],[43,0,47,8],[48,0,50,8],[51,0,52,8],[53,0,55,8]]}
[{"$f":"+'Cover Page'!$B$29","v":"Annual Performance Report 2022"},null,null,null,{"$f":"+'Cover Page'!$B$33","v":"Riverside Resource Recovery Facility"}]
[]
["Plant Description and Design",null,null,null,null,null,null,null,null,null,"Notes:"]
[]
["The Riverside Resource Recovery Energy from \"The Riverside Resource Recovery Energy from Waste facility at Belvedere in the London Borough of Bexley, uses the waste that would otherwise have gone to landfill as feedstock to generate electricity. As one of the largest operations of its kind in the UK, the facility generates c.580,000 MWh of electricity each year from processing up to 850,000 tonnes of waste through its three operating combustion lines. What’s more, we use the River Thames as a green highway to move the waste from the city to the facility on our fleet of tugs and barges, removing around 100,000 truck movements a year off our capital’s congested roads. By generating electricity from domestic and commercial residual waste, after recycling, we are improving resource efficiency, avoiding London’s use on landfill, and achieving greater sustainability as part of London’s circular economy.\nWith the Riverside Resource Recovery facility continuing to be fully operational, the Environment Agency has renewed the facility R1 certification; this means that the facility is classified as a recovery operation. The facility is permitted to process 850,000 tonnes of waste from across London and exports up to 610,000 Mega Watt hours of electricity to the National Grid. ",null,null,null,null,null,null,null,null,null,"Include summary of plant design, design capacity, no. of combustion lines, electrical and heat capacity and any other general information that descibes the facility, its location and purpose "]
[]
[]
[]
[]
[]
[]
[]
[]
[]
[]
[]
[]
[]
[]
["Summary of Operational Processes and Procedures"]
[]
["The Riverside Energy from Waste facility is a 24/7 operation which is operated from a continuously manned control room. The control room operator shall ensure that the site’s operations are performed to the facility design and to the strict requirements of the environmental permit.",null,null,null,null,null,null,null,null,null,"Include summary of key processes and procedures such as (but not limited to); waste reception, control rooms, grate, bed and bolier, energy & heat  generation, cooling systems, residue management, emission controls, health and safety systems, maintenance"]
[]
[]
["The river operations are a key aspect of the process for Riverside, with over 85% of the waste being brought to the plant on barges along the River Thames. From the jetty, the waste containers are removed from the barges and are transported using dock tractors into the site tipping hall.     "]
[]
[]
["In the tipping hall the waste is tipped into one of 12 tipping bays. Each bay has a hydraulically operated door designed to minimise noise and odour during tipping. Lights on each tipping bay indicate to the drivers of the vehicles which bay is available to receive waste. The tipping bays open into a waste bunker 30m deep, 61m long and 16m wide. It can hold up to circa. 10,000 tonnes of waste, enough to fuel the plant at full capacity for five days. "]
[]
[]
[]
[]
["The plant runs three combustion lines. The waste cranes feed each combustion line ensuring that the boilers have the required feedstock for 24 hour operation. The waste travels down the feed chutes and onto a horizontal feeder table where hydraulically operated ram feeders push the waste onto the moving grate. The grate is made up of alternate rows of fixed and moving cast steel bars that are arranged on a slope. The forward movement of these bars tumbles the waste slowly down the burning waste bed. "]
[]
[]
[]
[]
["Primary heated combustion air is drawn from above the waste bunker and fed into the waste bed through orificies in each grate bar. This process dries the waste and provides the correct amount of air to allow good combustion of the waste. Secondary swirling air is introduced above the grate. This ensures that the gases given off by the burning waste are thoroughly mixed, resulting in a fully optimised combustion process and lower levels of toxicity in the gases leaving the combustion chamber. Ammonia is injected into the flue gas to reduce the level of Oxides of Nitrogen.    "]
[]
[]
[]
[]
[]
["The resulting sub-product, from processing the waste, is known as Incinerator Bottom Ash (IBA) and this falls from the end of the grate into a quench bath. The IBA is collected in an ash bunker and loaded into containers by cranes and hoppers. Any oversized metal is removed and recycled and the remainder is transported on the river (circa 200,000 tonnes per annum) to our partner plant at Tilbury Docks for processing and recycling into aggregate that is primarily used within the construction industry.  "]
[]
[]
[]
[]
["The energy from the flue gases is utilised to convert water into steam via the steam drum. The steam is then further super-heated and drives the turbine/generator, producing electricity which is used to power the facility and exported to the National Grid.     "]
[]
[]
["Flue gases leave the boiler and pass through a reactor tower where hydrated lime, powdered activated carbon and water are injected into the swirling gas flow. These neutralise acids and capture heavy metals. "]
[]
["Gases from the reactor tower are then drawn into the fabric filter baghouse. The clean gases pass through the filters and the Air Pollution Control residue (APCr) collects on the outer surface of the bags. The APCr is collected in silos."]
[]
[]
["Flue Gas is drawn through the entire process by Induced Draft Fans. The clean hot gas from the Fabric Filter is passed through a heat exchanger that heats feed water to provide an efficient process. Cooled gas is emitted via an 85 metre stack where it is discharged into atmosphere. Continuous Emissions Monitoring (CEMS) equipment continually records emissions to air. "]
[]
[]
[]
["The plant operates within a Health, Safety, Environmental and Quality Integrated Management System which is compliant with ISO 45001, ISO 14001 and ISO 9001 and is independently audited."]

{"sheet":"Operational Summary","index":3,"n_rows":31,"n_cols":11,"rows_kept":31,"cut":false,"hidden":false,"merged":[[4,0,26,8],[30,0,51,8],[4,10,13,13],[30,10,39,13]]}
[{"$f":"+'Cover Page'!$B$29","v":"Annual Performance Report 2022"},null,null,null,{"$f":"+'Cover Page'!$B$33","v":"Riverside Resource Recovery Facility"}]
[]
["Summary of Plant Operations and Maintenance during the reporting year",null,null,null,null,null,null,null,null,null,"Notes:"]
[]
["Planned Plant Shutdowns:\n\nDuring 2022, each of the three boilers have undergone major inspections together with a common plant outage which was undertaken in July of 2022. The major inspection scope of works included Grate Maintenance and rectification of defects, refractory refurbishment, Boiler cleaning and Fabric filter maintenance.  The driver for the common outage is to perform the required inspections under the Pressure Systems Safety Regulations 2000 (PSSR)  all items registered on the written scheme were inspected, tested, and witnessed by our competent body. 2022 improvements as follows:\n\nThe Boiler improvement project continued, now being in the 2nd year of the 3-year project to replace refractory tiles with Alloy 625 weld overlay. The modification provides benefits in condition monitoring as well as reducing the temperature of the flue gas around the superheater stages, thus reducing corrosion in the long term. Two thirds of each lines furnace have now been completed. Line 2 Fabric bags were fully changed out as part of the maintenance strategy for the Bag House. The 10-year LV board maintenance and testing was completed with no issues found. Stack gas flow monitors have been replaced, and the automation of the QAL3 calibrations has also been implemented on the CEMS equipment.",null,null,null,null,null,null,null,null,null,"Include summary of key operational and/or mainteanance activity undertaken in the year, such as any major component upgrades and/or replacements "]
[]
[]
[]
[]
[]
[]
[]
[]
[]
[]
[]
[]
[]
[]
[]
[]
[]
[]
[]
[]
[]
[]
[]
["Summary of Residue Handling for the reporting year"]
[]
["100% of the Incinerator Bottom Ash and Recovered Metals were transported via the River Thames to Blue Phoenix Ltd at their premises at Tilbury Docks.                                                         \t\t\t\t\t\t\t\t\t\t\nThe Air Pollution Control residue (APCr) was sent to three main destinations throughout 2022:  \t\t\t\t\t\t\t\t\t\t\t\t\n1) OCO Ltd at Brandon, Suffolk where it was treated by Accelerated Carbonation Technology (ACT) to produce a stabilised product that is used as a component of breeze blocks.       \t\t\t\t\t\t\t\t\t\t\t\n2) Veolia Minosis in Cheshire where the APCr is stored in an underground storage facility within the Winsford salt mine. The unique geology in this area of Cheshire creates an impermeable cavity which is ideal for the storage of APCr.                                                                                                                3) Augean's in  East Northants Resource Management Facility (ENRMF) is based at Kings Cliffe near Peterborough which operates and is monitored under strict EPR permits to ensure full compliance with all current legislation.\t\t\t",null,null,null,null,null,null,null,null,null,"Include in here a summary of residue handling regimes and destinations "]

{"sheet":"Operational Data","index":4,"n_rows":63,"n_cols":11,"rows_kept":63,"cut":false,"hidden":false,"merged":[[53,0,55,0],[5,10,6,10],[7,10,18,10],[34,1,39,1],[3,1,3,2],[24,1,27,1],[29,1,30,1],[7,1,21,1]]}
[{"$f":"+'Cover Page'!$B$29","v":"Annual Performance Report 2022"},null,null,null,{"$f":"+'Cover Page'!$B$33","v":"Riverside Resource Recovery Facility"}]
[]
["Operational Data",null,null,null,null,null,null,null,null,null,"Notes:"]
["Plant Size",850000,null,"tonnes pa",270,"MWth",85,"MWe",null,null,"* - RDF to include SRF "]
["No. of combustion lines",3,null,"No. of Turbines:",null,1,null,null,null,null,"** - CHP plants only"]
[null,null,null,null,null,null,null,null,null,null,"2020 updates include;  heat in MWh, water in Litres, NCV in MJ/kg"]
["Waste types received","Unit","Q1","Q2","Q3","Q4","Year Total","%"]
["Household / Local Authority","tonnes",100057.62,103026.36,103154.15,103947.08,{"$f":"SUM(C8:F8)","v":410185.21},{"$f":"IF(G8>0,G8/$G$18,\"-\")","v":0.51095137706298921},null,null,"Availabiity Definition: 'the availability of a line is to be calculated by the number of hours the line reported Continuously Monitored emission levels to the Regulator through the calendar year divided by the total number of hours in that year. \nThe overall plant availability is calculated as the Mean of all lines in the plant. For clarity this includes periods of Other Than Normal Operating Conditions (OTNOC) and abnormal operation.'  \n\nRationale: The primary function of an Energy from Waste facility is the disposal of waste. It follows therefore that the availability of a plant is determined by the period of time a facility spends undertaking this activity."]
["Commercial & Industrial ",null,109193.63,88958.53,99221.32,95228.479999999996,{"$f":"SUM(C9:F9)","v":392601.95999999996},0.48904862293701079]
["Hazardous ",null,null,null,null,null,0,"-"]
["Clinical",null,null,null,null,null,0,"-"]
["Waste wood (biomass) ",null,null,null,null,null,0,"-"]
["Refuse Derived Fuel * - H'hold/LA",null,null,null,null,null,{"$f":"SUM(C13:F13)","v":0},"-"]
["Refuse Derived Fuel *  - C&I",null,null,null,null,null,{"$f":"SUM(C14:F14)","v":0},"-"]
["River Storage annual start/end",null,485,null,null,237,{"$f":"SUM(C15-F15)","v":248},3.0892372133949276E-4]
["Other [Please specify]"]
["Other [Please specify]"]
["Total waste received",null,{"$f":"SUM(C8:C17)","v":209736.25},{"$f":"SUM(D8:D17)","v":191984.89},{"$f":"SUM(E8:E17)","v":202375.47},{"$f":"SUM(F8:F17)","v":199412.56},{"$f":"SUM(G8:G9)","v":802787.16999999993},1]
["Rejected Waste ",null,null,null,null,null,{"$f":"SUM(C19:F19)","v":0},{"$f":"IF(G19>0,G19/$G$18,\"-\")","v":"-"}]
["Unprocessed waste transferred out",null,null,9967.1,6762.52,790.68,{"$f":"SUM(C20:F20)","v":17520.300000000003},{"$f":"IF(G20>0,G20/$G$18,\"-\")","v":2.1824339818485146E-2}]
["Storage bunker annual start/end balance",null,10780,null,null,7000,{"$f":"SUM(F21-C21)","v":-3780}]
["Total waste combusted",null,{"$f":"C18-SUM(C19:C20)","v":209736.25},{"$f":"D18-SUM(D19:D20)","v":182017.79},{"$f":"E18-SUM(E19:E20)","v":195612.95},{"$f":"F18-SUM(F19:F20)","v":198621.88},{"$f":"SUM(G18-G20)-G21+G15","v":789294.86999999988},{"$f":"IF(G22>0,G22/$G$18,\"-\")","v":0.98319317933294814}]
[]
["Energy Useage / Export","Unit","Q1","Q2","Q3","Q4","Year Total","KWh/te"]
["Power Generated","MWh",170745.51,141622.70000000001,153396.76,163612,{"$f":"SUM(C25:F25)","v":629376.97},{"$f":"IF(G25>0,G25*1000/$G$22,\"-\")","v":797.39143623219047}]
["Power Exported",null,154096.89000000001,126445,137429,146969.70000000001,{"$f":"SUM(C26:F26)","v":564940.59000000008},{"$f":"IF(G26>0,G26*1000/$G$22,\"-\")","v":715.75353074320651}]
["Power Used on site",null,{"$f":"SUM(C25-C26)","v":16648.619999999995},{"$f":"SUM(D25-D26)","v":15177.700000000012},15967.760000000009,16642.299999999988,{"$f":"SUM(C27:F27)","v":64436.380000000005},{"$f":"IF(G27>0,G27*1000/$G$22,\"-\")","v":81.637905488984131}]
["Power Imported",null,null,28.51,203.37,66.900000000000006,298.77999999999997,{"$f":"IF(G28>0,G28*1000/$G$22,\"-\")","v":0.37854040531138894}]
["Parasitic Load","%",{"$f":"IF(C25>0,1-C26/(C25+C28),\"-\")","v":9.7505462954779909E-2},{"$f":"IF(D25>0,1-D26/(D25+D28),\"-\")","v":0.10734966542114266},{"$f":"IF(E25>0,1-E26/(E25+E28),\"-\")","v":0.10528070516606991},{"$f":"IF(F25>0,1-F26/(F25+F28),\"-\")","v":0.10208524128644547},{"$f":"IF(G25>0,1-G26/(G25+G28),\"-\")","v":0.10280713525969498}]
["Thermal Energy Produced **","MWh",null,null,null,null,{"$f":"SUM(C30:F30)","v":0},{"$f":"IF(G30>0,G30*1000/$G$22,\"-\")","v":"-"}]
["Thermal Energy Exported **",null,null,null,null,null,0,{"$f":"IF(G31>0,G31*1000/$G$22,\"-\")","v":"-"}]
["R1 value (if applicable)",null,null,null,null,null,null,0.77]
[]
["Waste Disposal & Recovery","Unit","Q1","Q2","Q3","Q4","Year Total","% inputs"]
["APC Residues - produced","tonnes",4529.3599999999997,4134.88,4345.8599999999997,4591.5200000000004,{"$f":"SUM(C35:F35)","v":17601.62},{"$f":"IF(G35>0,G35/$G$22,\"-\")","v":2.2300436337562922E-2}]
["IBA - produced",null,43393.68,39593.410000000003,41674.42,44399.15,169060.66,{"$f":"IF(G36>0,G36/$G$22,\"-\")","v":0.21419201673007204}]
["Metals recycling",null,167.04,145.78,158.19999999999999,192.12,{"$f":"SUM(C37:F37)","v":663.14},8.4016762962110737E-4]
["Other",null,0,0,0,0,{"$f":"SUM(C38:F38)","v":0},"-"]
["Other",null,0,0,0,0,0,"-"]
["Other",null,0,0,0,0,0,"-"]
[]
["Raw Material Usage","Unit","Q1","Q2","Q3","Q4","Year Total","kg or Ltr /te"]
["Mains Water","ltrs",20360000,45040000,37800000,33860000,{"$f":"SUM(C43:F43)","v":137060000},{"$f":"IF(G43>0,G43/$G$22,\"-\")","v":173.64866440852455}]
["Other Water","ltrs",null,null,null,null,0,{"$f":"IF(G44>0,G44/$G$22,\"-\")","v":"-"}]
["Ammonia","ltrs",98235.62,68892.320000000007,104670.86,125379.1,397177.9,0.50320598181513598]
["Urea","kgs",null,null,null,null,{"$f":"SUM(C46:F46)","v":0},"-"]
["Activated Carbon","kgs",104860,104460,102740,113820,425880,0.53957021157378116]
["Hydrated lime","kgs",2034840,1765360,1837340,1797640,7435180,9.4200282842329894]
["Fuel oil","ltrs",215311.45,413488.05,332444.05,291704.75,1252948.3,1.5874273957969602]
["Gas","cf",0,0,0,0,0]
["Other",null,0,0,0,0,0]
[]
["Summary ","Line/Unit","Q1","Q2","Q3","Q4","Year Total",null,null,"Hrs in year "]
["Availability of waste combustion by line, hrs",1,1986,2057,1701,1840,{"$f":"SUM(C54:F54)","v":7584},0.87,null,8760]
[null,2,2152,1728,2005.5,2201,8086.5,0.92]
[null,3,2119,1635,2093,2096,7943,0.91]
["Overall Availability, mean avg. of all lines, hrs",null,2086,1808,1937,2057,{"$f":"AVERAGE(G54:G56)","v":7871.166666666667},0.9]
["Hours of turbine operations, hrs",1,2160,2181,2093,2196,8630,0.98499999999999999]
["Hours of heat / steam export",null,0,0,0,0,0,{"$f":"IF(B59>0,#REF!/J54,\"n/a\")","v":"n/a"}]
["Net Calorific Value of waste","MJ/kg",9.57,9.4499999999999993,9.66,9.4499999999999993,{"$f":"SUM(C60:F60)/4","v":9.5324999999999989},"-"]
["Abnormal Events","qty.",0,0,0,0,0,{"$f":"IF(G61>0,\"yes\",\"no\")","v":"no"}]
["Abnormal operation","hours",0,0,0,0,0,{"$f":"+(G62)/J54","v":0}]
["Permit Breaches","qty.",0,0,0,0,0,{"$f":"IF(G63>0,\"yes\",\"no\")","v":"no"}]

{"sheet":"Perf. Form 1","index":5,"n_rows":54,"n_cols":10,"rows_kept":54,"cut":false,"hidden":false,"merged":[[47,0,47,1],[49,0,49,9],[50,0,51,9],[38,0,38,9],[39,0,40,9],[43,0,43,1],[43,2,43,9],[45,0,45,1],[46,0,46,1],[36,0,36,3],[36,4,36,5],[36,7,36,8],[37,0,37,3],[37,4,37,5],[37,7,37,8],[34,0,34,3],[34,4,34,5],[34,7,34,8],[35,0,35,3],[35,4,35,5],[35,7,35,8],[31,0,31,3],[31,7,31,8],[32,0,32,3],[32,4,32,5],[32,7,32,8],[33,0,33,3],[33,4,33,5],[33,7,33,8],[23,0,23,3],[23,4,23,5],[23,6,23,7],[23,8,23,9],[25,0,25,9],[26,0,28,9],[21,0,21,1],[21,2,21,3],[21,4,21,5],[21,6,21,7],[21,8,21,9],[22,0,22,3],[22,4,22,5],[22,6,22,7],[22,8,22,9],[19,0,19,1],[19,2,19,3],[19,4,19,5],[19,6,19,7],[19,8,19,9],[20,0,20,1],[20,2,20,3],[20,4,20,5],[20,6,20,7],[20,8,20,9],[17,0,17,1],[17,2,17,3],[17,4,17,5],[17,6,17,7],[17,8,17,9],[18,0,18,1],[18,2,18,3],[18,4,18,5],[18,6,18,7],[18,8,18,9],[15,0,15,1],[15,2,15,3],[15,4,15,5],[15,6,15,7],[15,8,15,9],[16,0,16,9],[13,0,13,1],[13,2,13,3],[13,4,13,5],[13,6,13,7],[13,8,13,9],[14,0,14,3],[14,4,14,5],[14,6,14,7],[14,8,14,9],[11,0,11,1],[11,2,11,3],[11,4,11,5],[11,6,11,7],[11,8,11,9],[12,0,12,1],[12,2,12,3],[12,4,12,5],[12,6,12,7],[12,8,12,9],[9,0,9,9],[10,0,10,1],[10,2,10,3],[10,4,10,5],[10,6,10,7],[10,8,10,9],[2,0,2,4],[2,6,2,8],[3,1,3,4],[5,3,5,4],[5,6,5,7],[8,0,8,1],[8,2,8,3],[8,4,8,5],[8,6,8,7],[8,8,8,9]]}
[{"$f":"+'Cover Page'!C39","v":2022}," Annual Reporting Performance Form 1"]
[]
[{"$f":"+'Cover Page'!B31","v":"Permit EPR/BK0825UI"},null,null,null,null,"Operator: ","Cory"]
["Facility:","Riverside Resource Recovery Facility",null,null,null,"Form:","Performance 1"]
[]
["Reporting  Period from: ",null,null,"2022-01-01",null,"to:","2022-12-31"]
[]
[{"$f":"+A1","v":2022},"Annual Reporting of Waste Disposal and Recovery"]
["Waste Description",null,"Disposal Route(s)",null,"Disposal Tonnes",null,"Recovery Tonnes",null,"% / tonne of waste incinerated"]
["1) Hazardous Wastes"]
["APC Residues",null,"R05, D05",null,7479.12,null,10139.540000000001,null,{"$f":"IF((E11+G11)>0,(E11+G11)/'Operational Data'!$G$22, \"-\")","v":2.2322025227403293E-2}]
["IBA",null,null,null,null,null,null,null,{"$f":"IF((E12+G12)>0,(E12+G12)/'Operational Data'!$G$22, \"-\")","v":"-"}]
[null,null,null,null,null,null,null,null,{"$f":"IF((E13+G13)>0,(E13+G13)/'Operational Data'!$G$22, \"-\")","v":"-"}]
[null,null,null,null,null,null,null,null,{"$f":"IF((E14+G14)>0,(E14+G14)/'Operational Data'!$G$22, \"-\")","v":"-"}]
["Total Hazardous Waste",null,null,null,{"$f":"SUM(E11:F14)","v":7479.12},null,{"$f":"SUM(G11:H14)","v":10139.540000000001},null,{"$f":"IF((E15+G15)>0,(E15+G15)/'Operational Data'!$G$22, \"-\")","v":2.2322025227403293E-2}]
[]
["2) Non-Hazardous Wastes"]
["IBA",null,"R04",null,null,null,169612.66,null,{"$f":"IF((E18+G18)>0,(E18+G18)/'Operational Data'!$G$22, \"-\")","v":0.21489137513335166}]
["Ferrous Metal",null,null,null,null,null,null,null,{"$f":"IF((E19+G19)>0,(E19+G19)/'Operational Data'!$G$22, \"-\")","v":"-"}]
["Process Water",null,null,null,null,null,null,null,{"$f":"IF((E20+G20)>0,(E20+G20)/'Operational Data'!$G$22, \"-\")","v":"-"}]
[null,null,null,null,null,null,null,null,{"$f":"IF((E21+G21)>0,(E21+G21)/'Operational Data'!$G$22, \"-\")","v":"-"}]
[null,null,null,null,null,null,null,null,{"$f":"IF((E22+G22)>0,(E22+G22)/'Operational Data'!$G$22, \"-\")","v":"-"}]
["Total Non-Hazardous Waste",null,null,null,{"$f":"SUM(E18:F22)","v":0},null,{"$f":"SUM(G18:H22)","v":169612.66},null,{"$f":"IF((E23+G23)>0,(E23+G23)/'Operational Data'!$G$22, \"-\")","v":0.21489137513335166}]
["TOTAL WASTE",null,null,null,{"$f":"+E23+E15","v":7479.12},null,{"$f":"+G23+G15","v":179752.2},null,{"$f":"IF((E24+G24)>0,(E24+G24)/'Operational Data'!$G$22, \"-\")","v":0.23721340036075494}]
[]
["Operator’s comments :"]
[]
[]
[]
[]
[{"$f":"+A1","v":2022},"Annual Reporting of Water and Other Raw Material Usage"]
["Raw Material",null,null,null,"Usage",null,"Unit","Specific Useage",null,"Unit"]
["Mains Water",null,null,null,137060,null,"m3",{"$f":"IF(E33>0,E33/'Operational Data'!$G$22,\"-\")","v":0.17364866440852456},null,"m3/te"]
["Total Water",null,null,null,137060,null,"m3",{"$f":"IF(E34>0,E34/'Operational Data'!$G$22,\"-\")","v":0.17364866440852456},null,"m3/te"]
["Urea / Ammonia",null,null,null,397180,null,"kg",{"$f":"IF(E35>0,E35/'Operational Data'!$G$22,\"-\")","v":0.50320864241775709},null,"kg/te"]
["Activated Carbon",null,null,null,425880,null,"kg",{"$f":"IF(E36>0,E36/'Operational Data'!$G$22,\"-\")","v":0.53957021157378116},null,"kg/te"]
["Lime / hydrated lime / Sodium Bicarb.",null,null,null,7435180,null,"kg",{"$f":"IF(E37>0,E37/'Operational Data'!$G$22,\"-\")","v":9.4200282842329894},null,"kg/te"]
[]
["Operator’s comments :"]
[]
[]
[]
[{"$f":"+A31","v":2022},"Annual Reporting of other performance indicators "]
["Parameter",null,"Results by Line"]
[null,null,"A1","A2","A3","A4","A5",null,"Turbine 1","Turbine 2"]
["Operating hours for the year, hours",null,7624,8088.5,7949.5]
["Number of periods of abnormal operation, qty.",null,0,0,0]
["Cumulative hours of abnormal operation for this year, hours",null,0,0,0]
[]
["Operator’s comments :"]
[]
[]
[]
["Signed: ",null,null,null,null,null,"Date:"]

{"sheet":"Energy Form 1","index":6,"n_rows":29,"n_cols":7,"rows_kept":29,"cut":false,"hidden":false,"merged":[[15,0,15,2],[15,3,15,4],[15,6,15,8],[17,0,17,8],[18,0,24,8],[13,0,13,2],[13,3,13,4],[13,6,13,8],[14,0,14,2],[14,3,14,4],[14,6,14,8],[11,0,11,2],[11,3,11,4],[11,6,11,8],[12,0,12,2],[12,3,12,4],[12,6,12,8],[9,0,9,2],[9,3,9,4],[9,6,9,8],[10,0,10,2],[10,3,10,4],[10,6,10,8],[2,6,2,8],[4,1,4,4],[6,3,6,4],[6,6,6,7],[8,0,8,2],[8,3,8,4],[8,6,8,8]]}
[{"$f":"+'Cover Page'!C39","v":2022}," Annual Reporting of Energy Usage/Export"]
[]
[{"$f":"+'Cover Page'!B31","v":"Permit EPR/BK0825UI"},null,null,null,null,"Operator: ","Cory"]
[]
["Facility:",{"$f":"+'Cover Page'!B33:I33","v":"Riverside Resource Recovery Facility"},null,null,null,"Form:","Energy 1"]
[]
["Reporting  Period from: ",null,null,{"$f":"+'Perf. Form 1'!D6:E6","v":"2022-01-01"},null,"to:",{"$f":"+'Perf. Form 1'!G6:H6","v":"2022-12-31"}]
[]
["Energy Source",null,null,"Energy Usage",null,"Unit","Specific Useage (KWh/tonne incinerated"]
["Electricity Produced",null,null,629443,null,"MWh",{"$f":"+'Operational Data'!H25","v":797.39143623219047}]
["Electricity Imported   ",null,null,298.77999999999997,null,"MWh",{"$f":"+'Operational Data'!H28","v":0.37854040531138894}]
["Electricity Exported",null,null,564940.69999999995,null,"MWh",{"$f":"+'Operational Data'!H26","v":715.75353074320651}]
["Gas Oil",null,null,1087.5,null,"tonnes"]
["Steam/hot water exported",null,null,{"$f":"+'Operational Data'!G31","v":0},null,"GWh",{"$f":"+'Operational Data'!H31","v":"-"}]
[]
[]
[]
["Operator’s comments :"]
[]
[]
[]
[]
[]
[]
[]
[]
[]
[]
["Signed: ",null,null,null,null,null,"Date:"]

{"sheet":"Permit Compliance","index":7,"n_rows":34,"n_cols":12,"rows_kept":34,"cut":false,"hidden":false,"merged":[[26,0,26,10],[18,0,18,10],[31,1,31,3],[31,4,31,6],[31,7,31,9],[27,1,27,3],[27,4,27,6],[27,7,27,9],[28,1,28,3],[28,4,28,6],[28,7,28,9],[23,1,23,3],[23,4,23,6],[23,7,23,9],[24,1,24,3],[24,4,24,6],[32,1,32,3],[32,4,32,6],[32,7,32,9],[29,1,29,3],[29,4,29,6],[29,7,29,9],[30,1,30,3],[30,4,30,6],[30,7,30,9],[24,7,24,9],[21,1,21,3],[21,4,21,6],[21,7,21,9],[22,1,22,3],[22,4,22,6],[22,7,22,9],[19,1,19,3],[19,4,19,6],[19,7,19,9],[20,1,20,3],[20,4,20,6],[20,7,20,9],[16,2,16,4],[16,5,16,8],[15,2,15,4],[15,5,15,8],[16,0,16,1],[13,5,13,8],[14,0,14,1],[14,2,14,4],[14,5,14,8],[15,0,15,1],[7,0,7,1],[7,2,7,8],[8,0,8,1],[8,2,8,4],[8,5,8,8],[8,11,17,14],[33,4,33,8],[9,0,9,1],[9,2,9,4],[9,5,9,8],[10,0,10,1],[10,2,10,4],[10,5,10,8],[11,0,11,1],[11,2,11,4],[11,5,11,8],[12,0,12,1],[12,2,12,4],[12,5,12,8],[13,0,13,1],[13,2,13,4]]}
[{"$f":"+'Cover Page'!$B$29","v":"Annual Performance Report 2022"},null,null,null,{"$f":"+'Cover Page'!$B$33","v":"Riverside Resource Recovery Facility"}]
[]
["Summary of Permit Compliance"]
[]
["Compliance with permit limits for continuously monitored pollutants"]
[]
["The plant met its emission limits as shown in the table below:"]
["Substance",null,"Percentage time compliant during operation",null,null,null,null,null,null,null,null,"Notes:"]
[null,null,"Half-hourly limit",null,null,"Daily limit",null,null,null,null,null,"Report to 2 decimal places, i.e. xx.xx%\n\nPlease provide a brief summary of each notification or non-compliance in the table (rather than just referring to notifications that were sent to the Regulator).  \n\n"]
["Particulates",null,1,null,null,1]
["Oxides of nitrogen",null,1,null,null,1]
["Sulphur dioxide",null,1,null,null,1]
["Carbon monoxide",null,"\n100% 95% of 10-min averages",null,null,1]
["Total organic carbon",null,1,null,null,1]
["Hydrogen chloride",null,1,null,null,1]
[]
[]
[]
["Summary of any notifications or non-compliances under the permit"]
["Date","Summary of notification or non-compliance [including Line/Reference]",null,null,"Reason ",null,null,"Measures taken to prevent reoccurrence"]
[]
[]
[]
[]
[]
[]
["Summary of any complaints received and actions to taken to resolve them."]
["Date","Summary of complaint [including Line/Reference]",null,null,"Reason *",null,null,"Measures taken to prevent reoccurrence"]
[]
[]
[]
[]
[]
[null,null,null,null,"* including whether substantiated by the operator or the EA"]

{"sheet":"Improvements","index":8,"n_rows":38,"n_cols":5,"rows_kept":38,"cut":false,"hidden":false,"merged":[[37,0,37,8],[38,0,47,8],[4,0,4,8],[5,0,13,8],[15,0,15,8],[16,0,24,8],[26,0,26,8],[27,0,35,8]]}
[{"$f":"+'Cover Page'!$B$29","v":"Annual Performance Report 2022"},null,null,null,{"$f":"+'Cover Page'!$B$33","v":"Riverside Resource Recovery Facility"}]
[]
["Summary of Plant Improvements"]
[]
["Summary of any efficiency improvements that have been completed within the year."]
[]
[]
[]
[]
[]
[]
[]
[]
[]
[]
["Summary of any permit improvement conditions that have been completed within the year and the resulting environmental benefits."]
[]
[]
[]
[]
[]
[]
[]
[]
[]
[]
["Summary of any changes to the plant or operating techniques which required a variation to the permit and a summary of the resulting environmental impact."]
[]
[]
[]
[]
[]
[]
[]
[]
[]
[]
["Summary of any other improvements made to the plant or planned to be made and a summary of the resulting environmental benefits."]

{"sheet":"Public Liasion","index":9,"n_rows":29,"n_cols":5,"rows_kept":29,"cut":false,"hidden":false,"merged":[[23,0,24,1],[23,2,24,8],[25,0,26,1],[25,2,26,8],[28,0,28,8],[17,0,18,1],[17,2,18,8],[19,0,20,1],[19,2,20,8],[21,0,22,1],[21,2,22,8],[16,0,16,1],[16,2,16,8],[5,0,5,1],[5,2,5,8],[6,2,7,8],[8,0,9,1],[8,2,9,8],[10,0,11,1],[10,2,11,8],[12,0,13,1],[12,2,13,8],[15,0,15,8]]}
[{"$f":"+'Cover Page'!$B$29","v":"Annual Performance Report 2022"},null,null,null,{"$f":"+'Cover Page'!$B$33","v":"Riverside Resource Recovery Facility"}]
[]
["Details of Public & Stakeholder Liasion"]
[]
["Summary of events held during the reporting year."]
["Date",null,"Description"]
["10th February",null,"Reading University Environmental Management Students - Presentation & Site Tour "]
[]
["25th - 29th October",null,"School/Collge Work Experience event."]
[]
[]
[]
[]
[]
[]
["List of events planned for next year"]
["Date",null,"Description"]
["1st March",null,"Reading University Environmental Management Students - Presentation & Site Tour"]
[]
[]
[]
[]
[]
[]
[]
[]
[]
[]
["If you wish to be involved in the public liasion programme, please contact _________________"]

{"sheet":"CO2 N20","index":10,"n_rows":22,"n_cols":5,"rows_kept":22,"cut":false,"hidden":false,"merged":[[19,1,19,2],[22,0,23,2],[4,0,4,2],[8,1,8,2],[10,0,10,2],[12,1,12,2],[15,0,15,2],[17,1,17,2]]}
[{"$f":"+'Cover Page'!$B$29","v":"Annual Performance Report 2022"},null,{"$f":"+'Cover Page'!$B$33","v":"Riverside Resource Recovery Facility"}]
[]
["Carbon dioxide emissions and biogenic content of waste inputs",null,null,null,"Notes:"]
[]
["Carbon dioxide emissions (all types of plant)"]
["Annual mass of carbon dioxide released","x tonnes ",829221]
["Annual mass of carbon dioxide released per tonne of waste burned","x tonnes ",1.05]
["Annual mass of carbon dioxide released per MWh of energy exported","x tonnes ",1.47]
["Description of how annual carbon dioxide mass emission has been calculated","Where available, data from CO2 CEMS should be used; otherwise, a suitable emissions factor should be used based on the tonnage of waste burned e.g.0.992 tCO2/t waste as per Tolvik report 2021, or other justified emissions factor  - refer to adjacent Environment Agency guidance note or updated version for example descriptive text."]
[]
["Nitrous oxide emissions (only plants which use ammonia or urea to abate NOx emissions)"]
["Total annual mass emissions of nitrous oxide","x tonnes ",0.65]
["Description of how annual nitrous oxide mass emission has been calculated","Where available, data from N2O CEMS or periodic monitoring data should be used; otherwise, a suitable emissions factor should be used based on the tonnage of waste burned e.g. 0.0981 kgN20/t waste as per 2021 Pollution Inventory data for plants with urea-based SNCR - refer to adjacent Environment Agency guidance note or updated version for example descriptive text."]
["Total annual carbon dioxide and nitrous oxide emissions as carbon dioxide equivalent (whereby 1 kg nitrous oxide is equivalent to 298 t carbon dioxide)","x tonnes CO2e"]
[]
["Biogenic fraction of the waste and biogenic CO2 emissions (only plants burning residual municipal waste, refuse derived fuel or solid recovered fuel)"]
["Yearly average biogenic percentage of the waste by mass",0.48459999999999998]
["Description of how biogenic percentage has been calculated","Where available, data from waste sampling should be used; otherwise, an estimated figure with justification can be used, or a figure assumed on the basis of a national average e.g. 2017 WRAP data for residual waste of 51.8% biogenic energy content - refer to adjacent Environment Agency guidance note or updated version for example descriptive text."]
["Percentage of total carbon dioxide emissions arising from biogenic waste","x %"]
["Description of how percentage biogenic carbon dioxide emissions have been calculated","Examples include direct measurement via C14 method, BIOMA software or other method based on measured or assumed waste biogenic content - refer to adjacent Environment Agency guidance note or updated version for example descriptive text."]
[]
["Comments:"]

{"sheet":"Residue Quality ","index":11,"n_rows":34,"n_cols":6,"rows_kept":34,"cut":false,"hidden":false,"merged":[[34,0,39,6],[31,3,31,4],[33,0,33,6],[27,0,28,1],[29,0,29,1],[30,0,30,1],[31,0,31,1],[29,3,29,4],[29,5,29,6],[30,5,30,6],[31,5,31,6],[20,0,21,1],[20,2,21,6],[22,0,23,1],[22,2,23,6],[30,3,30,4],[27,2,28,2],[28,3,28,4],[28,5,28,6],[27,3,27,6],[26,0,26,6],[5,0,6,6],[7,0,8,6],[9,0,10,6],[14,0,15,1],[14,2,15,6],[16,0,17,1],[16,2,17,6],[18,0,19,1],[18,2,19,6],[12,0,12,6],[13,0,13,1],[13,2,13,6]]}
[{"$f":"+'Cover Page'!$B$29","v":"Annual Performance Report 2022"},null,null,null,{"$f":"+'Cover Page'!$B$33","v":"Riverside Resource Recovery Facility"}]
[]
["Residue Quality Monitoring Requirements"]
[]
["Summary of monitoring undertaken and compliance"]
["In 2022, the Incinerator Bottom of Ash, of each line, was tested monthly for Total Organic Carbon (TOC) & Quarterly for Heavy Metals suite, Dioxins/Furans and Dioxin-like PCBs in line with the site permit requirements.  "]
[]
["In 2022, The Air Pollution Control residue (APCr) was tested for Heavy Metals suite, Dioxins/Furans and Dioxin-like PCBs in line with the site permit requirements."]
[]
["In 2022, the facility continued to adopt the the ESA Sampling & Testing Protocol to Assess the Status of Incinerator Bottom Ash, for the hazard assessment of IBA. The IBA remained classified as non-hazardous throughout 2022."]
[]
[]
["Commentary on any specific events"]
["Date & Event",null,"Description"]
[]
[]
[]
[]
[]
[]
[]
[]
[]
[]
[]
[]
["Residue Quality Monitoring Results"]
["Parameter (unit) ",null,"Limit","Normal Operation "]
[null,null,null,"Bottom ash  ",null,"APC Residues"]
["Total Organic Carbon (average %)",null,"<3%",1.01]
["No. of Assessments Undertaken",null,"---",36,null,12]
["No. of Hazardous Results",null,"---",0]
[]
["Comments :"]

{"sheet":"Water","index":12,"n_rows":23,"n_cols":9,"rows_kept":23,"cut":false,"hidden":false,"merged":[[29,0,29,2],[29,3,29,4],[26,0,26,2],[26,3,26,4],[27,0,27,2],[27,3,27,4],[28,0,28,2],[28,3,28,4],[23,0,23,2],[23,3,23,4],[24,0,24,2],[24,3,24,4],[25,0,25,2],[25,3,25,4],[21,0,21,8],[22,0,22,2],[22,3,22,4],[14,0,15,1],[14,2,15,8],[16,0,17,1],[16,2,17,8],[18,0,19,1],[18,2,19,8],[5,0,6,8],[7,0,8,8],[9,0,10,8],[12,0,12,8],[13,0,13,1],[13,2,13,8]]}
[{"$f":"+'Cover Page'!$B$29","v":"Annual Performance Report 2022"},null,null,null,{"$f":"+'Cover Page'!$B$33","v":"Riverside Resource Recovery Facility"}]
[]
["Emissions to Water"]
[]
["Summary of monitoring undertaken and compliance"]
["Monthly visual assessment for visible oil or grease at three emission points for uncontaminated roof and surface water. No visible signs of oil or grease seen throughout 2022."]
[]
[]
[]
[]
[]
[]
["Commentary on any specific events"]
["Date & Event",null,"Description"]
[]
[]
[]
[]
[]
[]
[]
["Emissions to Water / Sewer"]
["Parameter",null,null,"Monitoring Frequency",null,"Limit","Target","Max.","Average"]

{"sheet":"Air (periodic)","index":13,"n_rows":39,"n_cols":11,"rows_kept":39,"cut":false,"hidden":false,"merged":[[18,3,18,4],[27,3,27,4],[33,3,33,4],[19,3,19,4],[20,3,20,4],[21,3,21,4],[22,3,22,4],[23,3,23,4],[24,3,24,4],[31,3,31,4],[25,3,25,4],[26,3,26,4],[28,3,28,4],[13,3,13,4],[14,3,14,4],[15,3,15,4],[16,3,16,4],[17,3,17,4],[38,0,38,7],[19,0,19,1],[20,0,20,1],[21,0,21,1],[34,3,34,4],[35,3,35,4],[33,0,33,1],[34,0,34,1],[35,0,35,1],[36,0,36,1],[24,0,24,1],[32,3,32,4],[39,0,40,7],[25,0,25,1],[26,0,26,1],[22,0,22,1],[23,0,23,1],[37,0,37,1],[27,0,27,1],[28,0,28,1],[29,0,29,1],[30,0,30,1],[31,0,31,1],[32,0,32,1],[37,3,37,4],[29,3,29,4],[30,3,30,4],[36,3,36,4],[16,0,16,1],[17,0,17,1],[18,0,18,1],[13,0,13,1],[14,0,14,1],[15,0,15,1],[12,0,12,1],[11,3,11,4],[12,3,12,4],[9,0,10,1],[9,5,9,7],[9,3,10,4],[9,2,10,2],[5,10,8,13],[9,10,11,13],[8,0,8,7],[5,0,6,7],[11,0,11,1]]}
[{"$f":"+'Cover Page'!$B$29","v":"Annual Performance Report 2022"},null,null,null,{"$f":"+'Cover Page'!$B$33","v":"Riverside Resource Recovery Facility"}]
[]
["Emissions to Air (periodically monitored)"]
[]
["Summary of monitoring undertaken, standards used and compliance",null,null,null,null,null,null,null,null,null,"Notes:"]
[null,null,null,null,null,null,null,null,null,null,"Template may require adjustment for any bespoke monitoring requirements of permit. "]
[]
[]
["Results of emissions to air that are periodically monitored"]
["Substance",null,"Ref. Period","Emission Limit Value",null,"Average",null,null,null,null,"User to add additional tables as necessary, depending on whether quarterly or bi-annual reporting is required for the compliance year"]
[null,null,null,null,null,"A1","A2","A3"]
["Hydrogen fluoride",null,"1 hr","2 mg/m3",null,2.4E-2,2.1000000000000001E-2,2.1999999999999999E-2]
["Cd and Th and their compounds",null,"6-8hrs","0.05 mg/m3",null,8.9999999999999998E-4,1E-3,8.9999999999999998E-4]
["Hg and its compounds",null,"6-8hrs","0.05 mg/m3",null,4.0000000000000002E-4,8.0000000000000004E-4,5.9999999999999995E-4]
["Sb, As, Pb, Cr, Co, Cu, Mn, Ni, V and their compounds",null,"6-8hrs","0.5 mg/m3",null,1.7000000000000001E-2,1.2999999999999999E-2,1.2E-2]
["Dioxins & Furans (I-TEQ)",null,"6-8hrs","0.1 ng/m3",null,1.6E-2,3.0000000000000001E-3,2E-3]
["PCBs (WHO-TEQ Humans / Mammals)",null,"6-8hrs","None set ng/m3",null,1E-3,1E-4,2.0000000000000001E-4]
["PCBs (WHO-TEQ Fish)",null,"6-8hrs","None set ng/m3",null,6.9999999999999994E-5,7.9999999999999996E-6,1.0000000000000001E-5]
["PCBs (WHO-TEQ Birds)",null,"6-8hrs","None set ng/m3",null,2E-3,2.9999999999999997E-4,5.0000000000000001E-4]
["Dioxins & Furans (WHO-TEQ Humans / Mammals)",null,"6-8hrs","None set ng/m3",null,1.6E-2,3.0000000000000001E-3,2E-3]
["Dioxins & Furans (WHO-TEQ Fish)",null,"6-8hrs","None set ng/m3",null,1.6E-2,2E-3,2E-3]
["Dioxins & Furans (WHO-TEQ Birds)",null,"6-8hrs","None set ng/m3",null,2.1000000000000001E-2,3.0000000000000001E-3,3.0000000000000001E-3]
["Anthanthrene",null,"6-8hrs","None set µg/m3",null,1.2999999999999999E-3,1.0999999999999999E-2,1.1999999999999999E-3]
["Benzo(a)anthracene",null,"6-8hrs","None set µg/m3",null,1.2999999999999999E-3,3.5999999999999997E-2,1.1999999999999999E-3]
["Benzo(a)pyrene",null,"6-8hrs","None set µg/m3",null,1.2999999999999999E-3,3.1E-2,1.1999999999999999E-3]
["Benzo(b)fluoranthene",null,"6-8hrs","None set µg/m3",null,1.2999999999999999E-3,1.6E-2,1.1999999999999999E-3]
["Benzo(b)naptho(2,1-d) thiophene",null,"6-8hrs","None set µg/m3",null,1.2999999999999999E-3,1.2999999999999999E-3,5.5999999999999999E-3]
["Benzo(c)phenanthrene",null,"6-8hrs","None set µg/m3",null,1.2999999999999999E-3,1.0999999999999999E-2,1.1999999999999999E-3]
["Benzo(ghi)perylene",null,"6-8hrs","None set µg/m3",null,1.2999999999999999E-3,7.0999999999999994E-2,1.1999999999999999E-3]
["Benzo(k)fluoranthene",null,"6-8hrs","None set µg/m3",null,1.2999999999999999E-3,3.5999999999999997E-2,1.1999999999999999E-3]
["Cholanthrene",null,"6-8hrs","None set µg/m3",null,1.2999999999999999E-3,1.2999999999999999E-3,1.1999999999999999E-3]
["Chrysene",null,"6-8hrs","None set µg/m3",null,1.2999999999999999E-3,4.5999999999999999E-2,1.1999999999999999E-3]
["Cyclopenta(cd)pyrene",null,"6-8hrs","None set µg/m3",null,1.2999999999999999E-3,0.121,1.1999999999999999E-3]
["Dibenzo(ai)pyrene",null,"6-8hrs","None set µg/m3",null,1.2999999999999999E-3,6.0000000000000001E-3,1.1999999999999999E-3]
["Dibenzo(ah)anthracene",null,"6-8hrs","None set µg/m3",null,1.2999999999999999E-3,7.0000000000000001E-3,5.5999999999999999E-3]
["Fluoranthene",null,"6-8hrs","None set µg/m3",null,0.02,0.54,1.4999999999999999E-2]
["Indeno(123-cd) pyrene",null,"6-8hrs","None set µg/m3",null,1.2999999999999999E-3,5.0999999999999997E-2,1.1999999999999999E-3]
["Naphthalene",null,"6-8hrs","None set µg/m3",null,0.13500000000000001,12.05,0.06]
["Comments :"]

{"sheet":"Air (CEMS)","index":14,"n_rows":27,"n_cols":12,"rows_kept":27,"cut":false,"hidden":false,"merged":[[24,0,24,8],[26,0,27,8],[11,0,12,0],[5,0,6,8],[8,0,8,8],[9,0,10,0],[9,2,10,2],[9,1,10,1],[9,3,9,4],[9,5,9,6],[9,7,9,8]]}
[{"$f":"+'Cover Page'!$B$29","v":"Annual Performance Report 2022"},null,null,null,null,{"$f":"+'Cover Page'!$B$33","v":"Riverside Resource Recovery Facility"}]
[]
["Emissions to Air (continously monitored)"]
[null,null,null,null,null,null,null,null,null,null,null,"Notes:"]
["Summary of monitoring undertaken, standards used and compliance",null,null,null,null,null,null,null,null,null,null,"Template may require adjustment for any bespoke monitoring requirements of permit"]
["All substances listed below are continuously monitored in line with the requirements of the Environmental permit. Oxides of Nitrogen (ISO 10849), Particulate Matter (BS EN 13284-2), Total Organic Carbon (BS EN 12619), Hydrogen Chloride, Sulphur Dioxide (BS 6069-4.4)",null,null,null,null,null,null,null,null,null,null,"Report to 2 decimal places, i.e. xx.xx%"]
[]
[]
["Results of emissions to air that are continuously monitored (maximum and average values for each line)"]
["Substance","Reference Period","Emission Limit Value","A1",null,"A2",null,"A3"]
[null,null,null,"Max.","Avg.","Max.","Avg.","Max.","Avg."]
["Oxides of nitrogen","Daily mean","200 mg/m3 ",169.8,168.8,168.5,160.9,165.5,155]
[null,"½ hourly mean","400 mg/m3 ",169.8,168.9,168.4,160.9,165.5,154.9]
["Particulates","Daily mean","10 mg/m3"]
[null,"½ hourly mean","30 mg/m3 "]
["Total Organic Carbon ","Daily mean","10 mg/m3 ",0.2,0.16,0.9,0.76,0.3,0.27]
[null,"½ hourly mean","20 mg/m3 ",0.2,0.2,0.9,0.77,0.4,0.3]
["Hydrogen chloride ","Daily mean","10 mg/m3 ",1.7,1.43,2.2000000000000002,1.19,2.2999999999999998,1.36]
[null,"½ hourly mean","60 mg/m3 ",1.7,1.48,2.2000000000000002,1.22,2.2999999999999998,1.39]
["Sulphur dioxide","Daily mean","50 mg/m3 ",2.7,1.79,10.1,7.95,10,8.98]
[null,"½ hourly mean","200 mg/m3 ",2.8,1.83,10.1,7.97,10.1,8.99]
["Carbon monoxide ","Daily mean","50 mg/m3 ",12.3,9.6300000000000008,13.2,10.83,14.9,11.68]
[null,"95%ile 10-min avg *","150 mg/m3 *",12.2,9.7200000000000006,13.1,10.89,14.9,11.8]
[" Ammonia","Daily mean","No limit set",0.5,0.43,0.4,0.3,0.5,0.45]
["* = delete or amend as appropriate"]
["Comments :"]
["Following EA guidance and approval in July 2015, RRRL now monitor particulate emissions qualitatively as opposed to quantitatively. The particulate data is now reported in mA (milliamps) and the reporting range of the instrument is 4mA to 20mA."]

{"sheet":"HCl","index":15,"n_rows":49,"n_cols":17,"rows_kept":49,"cut":false,"hidden":false,"merged":[[12,16,15,18],[4,9,4,14],[4,1,4,3],[4,4,4,6],[48,0,51,6],[47,0,47,6],[6,9,18,9],[21,9,33,9],[36,9,48,9],[3,16,7,18],[9,16,11,18]]}
[{"$f":"+'Cover Page'!$B$29","v":"Annual Performance Report 2022"},null,null,null,{"$f":"+'Cover Page'!$B$33","v":"Riverside Resource Recovery Facility"}]
[]
["Monitoring of Hydrogen Chloride emissions",null,null,"Whole Installation",null,null,"See  Notes in Cell Q3",null,null,{"$f":"+A3","v":"Monitoring of Hydrogen Chloride emissions"},null,null,null,"Per Combustion Line",null,null,"Notes:"]
[null,null,null,null,null,null,null,null,null,null,null,null,null,null,null,null,"User to add logic to complete Whole installation, Table A5:G18. From the data in Per Combustion Line, Table J6:O79, subject to No. of lines installed"]
["mg/Nm3","1/2 Hourly Reference Periods",null,null,"Daily Reference Periods"]
[{"$f":"+'Cover Page'!C39","v":2022},"1/2 hourly HCl ELV","Monthly 1/2 hourly mean","Highest 1/2 hourly maximum","Daily HCl ELV","Monthly daily mean","Highest daily maximum",null,null,{"$f":"+A6","v":2022},"mg/Nm3","Monthly 1/2 hourly mean","Monthly 1/2 hourly maximum","Monthly daily mean","Monthly daily maximum"]
["Jan",60,{"$f":"(L7+L22+L37)/3","v":1.4666666666666668},2.8,10,{"$f":"(N7+N22+N37)/3","v":1.5},2.4,null,null,"A1","Jan",1.6,2.7,1.7,2.4]
["Feb",60,{"$f":"(L8+L23+L38)/3","v":1.5},3.8,10,{"$f":"(N8+N23+N38)/3","v":1.5},2.9,null,null,null,"Feb",1.4,2.2999999999999998,1.4,1.6]
["Mar",60,1.5666666666666667,3.5,10,1.5666666666666667,3.1,null,null,null,"Mar",1.6,2.9,1.6,2.4,null,"Whole Installation table A5:G18:"]
["Apr",60,1,1.9,10,1,1.5,null,null,null,"Apr",1.4,1.9,1.4,1.5,null,"Mean: for 1/2 hourly and daily periods calculate mean of values across all operational combustion lines for the month"]
["May",60,1,2.7,10,1,1.4,null,null,null,"May",1.3,2.2000000000000002,1.3,1.4]
["Jun",60,0.93333333333333324,2.4,10,0.93333333333333324,2,null,null,null,"Jun",1.5,2.4,1.5,2]
["Jul",60,0.9,1.9,10,0.9,1.5,null,null,null,"Jul",1.3,1.9,1.3,1.5,null,"Maximum: for 1/2 hourly and daily periods use the highest value across all operational combustion lines for the month"]
["Aug",60,1.3999999999999997,3.3,10,1.3999999999999997,2.8,null,null,null,"Aug",1.3,2.4,1.3,1.5]
["Sep",60,2.0333333333333332,4.7,10,2.0333333333333332,4,null,null,null,"Sep",1.6,2.6,1.6,2.2000000000000002]
["Oct",60,1.3,2.9,10,1.3,2.1,null,null,null,"Oct",1.4,2.6,1.4,1.8]
["Nov",60,1.6666666666666667,3.3,10,1.6666666666666667,2.8,null,null,null,"Nov",1.7,2.8,1.7,2.1]
["Dec",60,1.6333333333333335,3.5,10,1.6333333333333335,2.4,null,null,null,"Dec",1.7,2.7,1.7,2.2999999999999998]
[null,null,null,null,null,null,null,null,null,null,"Annual",{"$f":"AVERAGE(L7:L18)","v":1.4833333333333334},{"$f":"MAX(M7:M18)","v":2.9},{"$f":"AVERAGE(N7:N18)","v":1.4916666666666665},{"$f":"MAX(O7:O18)","v":2.4}]
[]
[null,null,null,null,null,null,null,null,null,{"$f":"+A6","v":2022},"mg/Nm3","Monthly 1/2 hourly mean","Monthly 1/2 hourly maximum","Monthly daily mean","Monthly daily maximum"]
[null,null,null,null,null,null,null,null,null,"A2","Jan",1.2,2.2999999999999998,1.2,1.9]
[null,null,null,null,null,null,null,null,null,null,"Feb",1.2,2.7,1.2,2.2999999999999998]
[null,null,null,null,null,null,null,null,null,null,"Mar",1.4,3.2,1.4,2.5]
[null,null,null,null,null,null,null,null,null,null,"Apr",0.8,1.5,0.8,1.1000000000000001]
[null,null,null,null,null,null,null,null,null,null,"May",0.8,2.7,0.8,1]
[null,null,null,null,null,null,null,null,null,null,"Jun",0.4,1.3,0.4,0.9]
[null,null,null,null,null,null,null,null,null,null,"Jul",0.5,1.8,0.5,1.1000000000000001]
[null,null,null,null,null,null,null,null,null,null,"Aug",1.5,3.3,1.5,2.8]
[null,null,null,null,null,null,null,null,null,null,"Sep",2.2000000000000002,4.7,2.2000000000000002,4]
[null,null,null,null,null,null,null,null,null,null,"Oct",1.1000000000000001,2.4,1.1000000000000001,1.6]
[null,null,null,null,null,null,null,null,null,null,"Nov",1.8,3.3,1.8,2.8]
[null,null,null,null,null,null,null,null,null,null,"Dec",1.8,3.5,1.8,2.4]
[null,null,null,null,null,null,null,null,null,null,"Annual",{"$f":"AVERAGE(L22:L33)","v":1.2250000000000001},{"$f":"MAX(M22:M33)","v":4.7},{"$f":"AVERAGE(N22:N33)","v":1.2250000000000001},{"$f":"MAX(O22:O33)","v":4}]
[]
[null,null,null,null,null,null,null,null,null,{"$f":"+A6","v":2022},"mg/Nm3","Monthly 1/2 hourly mean","Monthly 1/2 hourly maximum","Monthly daily mean","Monthly daily maximum"]
[null,null,null,null,null,null,null,null,null,"A3","Jan",1.6,2.8,1.6,2.4]
[null,null,null,null,null,null,null,null,null,null,"Feb",1.9,3.8,1.9,2.9]
[null,null,null,null,null,null,null,null,null,null,"Mar",1.7,3.5,1.7,3.1]
[null,null,null,null,null,null,null,null,null,null,"Apr",0.8,1.7,0.8,1.3]
[null,null,null,null,null,null,null,null,null,null,"May",0.9,2.2000000000000002,0.9,1.2]
[null,null,null,null,null,null,null,null,null,null,"Jun",0.9,2.1,0.9,1.4]
[null,null,null,null,null,null,null,null,null,null,"Jul",0.9,1.9,0.9,1.3]
[null,null,null,null,null,null,null,null,null,null,"Aug",1.4,2.7,1.4,2.2999999999999998]
[null,null,null,null,null,null,null,null,null,null,"Sep",2.2999999999999998,3.6,2.2999999999999998,3.1]
[null,null,null,null,null,null,null,null,null,null,"Oct",1.4,2.9,1.4,2.1]
[null,null,null,null,null,null,null,null,null,null,"Nov",1.5,2.4,1.5,2.1]
["Comments :",null,null,null,null,null,null,null,null,null,"Dec",1.4,2.5,1.4,2.1]
[null,null,null,null,null,null,null,null,null,null,"Annual",{"$f":"AVERAGE(L37:L48)","v":1.3916666666666668},{"$f":"MAX(M37:M48)","v":3.8},{"$f":"AVERAGE(N37:N48)","v":1.3916666666666668},{"$f":"MAX(O37:O48)","v":3.1}]

{"sheet":"SO2","index":16,"n_rows":49,"n_cols":17,"rows_kept":49,"cut":false,"hidden":false,"merged":[[21,9,33,9],[36,9,48,9],[47,0,47,6],[48,0,51,6],[3,16,7,18],[9,16,11,18],[12,16,15,18],[4,1,4,3],[4,4,4,6],[4,9,4,14],[6,9,18,9]]}
[{"$f":"+'Cover Page'!$B$29","v":"Annual Performance Report 2022"},null,null,null,{"$f":"+'Cover Page'!$B$33","v":"Riverside Resource Recovery Facility"}]
[]
["Monitoring of Sulphur dioxide emissions",null,null,"Whole Installation",null,null,"See  Notes in Cell Q3",null,null,{"$f":"+A3","v":"Monitoring of Sulphur dioxide emissions"},null,null,null,"Per Combustion Line",null,null,"Notes:"]
[null,null,null,null,null,null,null,null,null,null,null,null,null,null,null,null,"User to add logic to complete Whole installation, Table A5:G18. From the data in Per Combustion Line, Table J6:O79, subject to No. of lines installed"]
["mg/Nm3","1/2 Hourly Reference Periods",null,null,"Daily Reference Periods"]
[{"$f":"+'Cover Page'!C39","v":2022},"1/2 hourly SO2 ELV","Monthly 1/2 hourly mean","Highest 1/2 hourly maximum","Daily SO2 ELV","Monthly daily mean","Highest daily maximum",null,null,{"$f":"+A6","v":2022},"mg/Nm3","Monthly 1/2 hourly mean","Monthly 1/2 hourly maximum","Monthly daily mean","Monthly daily maximum"]
["Jan",200,{"$f":"(L7+L22+L37)/3","v":5.9333333333333336},24.8,50,{"$f":"(N7+N22+N37)/3","v":5.8999999999999995},10.4,null,null,"A1","Jan",1.6,24.8,1.5,2.4]
["Feb",200,{"$f":"(L8+L23+L38)/3","v":6.1333333333333329},27.5,50,{"$f":"(N8+N23+N38)/3","v":6.1333333333333329},10.5,null,null,null,"Feb",1.9,27.5,1.9,3.4]
["Mar",200,6.0999999999999988,44.3,50,6.0999999999999988,10.5,null,null,null,"Mar",2.1,44.3,2.1,5.0999999999999996,null,"Whole Installation table A5:G18:"]
["Apr",200,6.0333333333333341,20.3,50,6.0333333333333341,10.7,null,null,null,"Apr",1.5,13.4,1.5,2.2000000000000002,null,"Mean: for 1/2 hourly and daily periods calculate mean of values across all operational combustion lines for the month"]
["May",200,6.7333333333333334,40.1,50,6.7333333333333334,12.5,null,null,null,"May",1.9,25.5,1.9,4.9000000000000004]
["Jun",200,7.333333333333333,48,50,7.333333333333333,12.6,null,null,null,"Jun",1.8,35.1,1.8,4]
["Jul",200,6.9666666666666659,38.6,50,6.9666666666666659,10.9,null,null,null,"Jul",2.2999999999999998,32.4,2.2999999999999998,6.6,null,"Maximum: for 1/2 hourly and daily periods use the highest value across all operational combustion lines for the month"]
["Aug",200,6.5999999999999988,73.400000000000006,50,6.5999999999999988,10.5,null,null,null,"Aug",2.8,73.400000000000006,2.8,4.9000000000000004]
["Sep",200,5.7666666666666666,23.2,50,5.7666666666666666,8.9,null,null,null,"Sep",1.6,23.2,1.6,2.4]
["Oct",200,6.1333333333333329,50.7,50,6.1333333333333329,11.3,null,null,null,"Oct",2,40.299999999999997,2,2.8]
["Nov",200,5.833333333333333,18.7,50,5.833333333333333,9.3000000000000007,null,null,null,"Nov",1.5,16.899999999999999,1.5,3.1]
["Dec",200,5.6000000000000005,27.3,50,5.6000000000000005,9.8000000000000007,null,null,null,"Dec",1,27.3,1,2.1]
[null,null,null,null,null,null,null,null,null,null,"Annual",{"$f":"AVERAGE(L7:L18)","v":1.8333333333333337},{"$f":"MAX(M7:M18)","v":73.400000000000006},{"$f":"AVERAGE(N7:N18)","v":1.8250000000000002},{"$f":"MAX(O7:O18)","v":6.6}]
[]
[null,null,null,null,null,null,null,null,null,{"$f":"+A6","v":2022},"mg/Nm3","Monthly 1/2 hourly mean","Monthly 1/2 hourly maximum","Monthly daily mean","Monthly daily maximum"]
[null,null,null,null,null,null,null,null,null,"A2","Jan",7.7,17.8,7.7,8.9]
[null,null,null,null,null,null,null,null,null,null,"Feb",7.7,15.3,7.7,9.1]
[null,null,null,null,null,null,null,null,null,null,"Mar",7.5,33.4,7.5,9.4]
[null,null,null,null,null,null,null,null,null,null,"Apr",7.5,13.1,7.5,8.3000000000000007]
[null,null,null,null,null,null,null,null,null,null,"May",8.1999999999999993,29.4,8.1999999999999993,9.5]
[null,null,null,null,null,null,null,null,null,null,"Jun",10.1,36.4,10.1,12.4]
[null,null,null,null,null,null,null,null,null,null,"Jul",9.1,38.6,9.1,10.7]
[null,null,null,null,null,null,null,null,null,null,"Aug",8.1,20.5,8.1,10.5]
[null,null,null,null,null,null,null,null,null,null,"Sep",7.4,13.4,7.4,7.7]
[null,null,null,null,null,null,null,null,null,null,"Oct",7.6,21.2,7.6,8]
[null,null,null,null,null,null,null,null,null,null,"Nov",7.4,11.5,7.4,7.8]
[null,null,null,null,null,null,null,null,null,null,"Dec",7.3,20.7,7.3,8.4]
[null,null,null,null,null,null,null,null,null,null,"Annual",{"$f":"AVERAGE(L22:L33)","v":7.9666666666666659},{"$f":"MAX(M22:M33)","v":38.6},{"$f":"AVERAGE(N22:N33)","v":7.9666666666666659},{"$f":"MAX(O22:O33)","v":12.4}]
[]
[null,null,null,null,null,null,null,null,null,{"$f":"+A6","v":2022},"mg/Nm3","Monthly 1/2 hourly mean","Monthly 1/2 hourly maximum","Monthly daily mean","Monthly daily maximum"]
[null,null,null,null,null,null,null,null,null,"A3","Jan",8.5,16.8,8.5,10.4]
[null,null,null,null,null,null,null,null,null,null,"Feb",8.8000000000000007,24.5,8.8000000000000007,10.5]
[null,null,null,null,null,null,null,null,null,null,"Mar",8.6999999999999993,36.4,8.6999999999999993,10.5]
[null,null,null,null,null,null,null,null,null,null,"Apr",9.1,20.3,9.1,10.7]
[null,null,null,null,null,null,null,null,null,null,"May",10.1,40.1,10.1,12.5]
[null,null,null,null,null,null,null,null,null,null,"Jun",10.1,48,10.1,12.6]
[null,null,null,null,null,null,null,null,null,null,"Jul",9.5,36.200000000000003,9.5,10.9]
[null,null,null,null,null,null,null,null,null,null,"Aug",8.9,32.700000000000003,8.9,9.6999999999999993]
[null,null,null,null,null,null,null,null,null,null,"Sep",8.3000000000000007,15.3,8.3000000000000007,8.9]
[null,null,null,null,null,null,null,null,null,null,"Oct",8.8000000000000007,50.7,8.8000000000000007,11.3]
[null,null,null,null,null,null,null,null,null,null,"Nov",8.6,18.7,8.6,9.3000000000000007]
["Comments :",null,null,null,null,null,null,null,null,null,"Dec",8.5,25.6,8.5,9.8000000000000007]
[null,null,null,null,null,null,null,null,null,null,"Annual",{"$f":"AVERAGE(L37:L48)","v":8.9916666666666671},{"$f":"MAX(M37:M48)","v":50.7},{"$f":"AVERAGE(N37:N48)","v":8.9916666666666671},{"$f":"MAX(O37:O48)","v":12.6}]

{"sheet":"NOx","index":17,"n_rows":49,"n_cols":17,"rows_kept":49,"cut":false,"hidden":false,"merged":[[21,9,33,9],[36,9,48,9],[47,0,47,6],[48,0,51,6],[3,16,7,18],[9,16,11,18],[12,16,15,18],[4,1,4,3],[4,4,4,6],[4,9,4,14],[6,9,18,9]]}
[{"$f":"+'Cover Page'!$B$29","v":"Annual Performance Report 2022"},null,null,null,{"$f":"+'Cover Page'!$B$33","v":"Riverside Resource Recovery Facility"}]
[]
["Monitoring of Oxides of Nitrogen emissions",null,null,"Whole Installation",null,null,"See  Notes in Cell Q3",null,null,{"$f":"+A3","v":"Monitoring of Oxides of Nitrogen emissions"},null,null,null,"Per Combustion Line",null,null,"Notes:"]
[null,null,null,null,null,null,null,null,null,null,null,null,null,null,null,null,"User to add logic to complete Whole installation, Table A5:G18. From the data in Per Combustion Line, Table J6:O79, subject to No. of lines installed"]
["mg/Nm3","1/2 Hourly Reference Periods",null,null,"Daily Reference Periods"]
[{"$f":"+'Cover Page'!C39","v":2022},"1/2 hourly NOx ELV","Monthly 1/2 hourly mean","Highest 1/2 hourly maximum","Daily NOx ELV","Monthly daily mean","Highest daily maximum",null,null,{"$f":"+A6","v":2022},"mg/Nm3","Monthly 1/2 hourly mean","Monthly 1/2 hourly maximum","Monthly daily mean","Monthly daily maximum"]
["Jan",400,{"$f":"(L7+L22+L37)/3","v":165.26666666666668},212.4,200,{"$f":"(N7+N22+N37)/3","v":163.13333333333335},170.5,null,null,"A1","Jan",168.8,200.9,165.2,170.5]
["Feb",400,{"$f":"(L8+L23+L38)/3","v":158.83333333333334},206.5,200,{"$f":"(N8+N23+N38)/3","v":159.1},171,null,null,null,"Feb",169,205.7,169,171]
["Mar",400,161.13333333333333,227,200,161.13333333333333,173,null,null,null,"Mar",168.6,227,168.6,173,null,"Whole Installation table A5:G18:"]
["Apr",400,164.06666666666669,213.7,200,164.06666666666669,171,null,null,null,"Apr",169.6,213.7,169.6,171,null,"Mean: for 1/2 hourly and daily periods calculate mean of values across all operational combustion lines for the month"]
["May",400,156.56666666666666,216.9,200,156.56666666666666,71,null,null,null,"May",168.3,216.9,168.3,171]
["Jun",400,163.93333333333331,210.7,200,163.93333333333331,170.7,null,null,null,"Jun",168,210.7,168,170.7]
["Jul",400,162,206.2,200,162,170.7,null,null,null,"Jul",169.4,206.2,169.4,170.7,null,"Maximum: for 1/2 hourly and daily periods use the highest value across all operational combustion lines for the month"]
["Aug",400,159.4,207.2,200,159.4,171.8,null,null,null,"Aug",169.8,207.2,169.8,171.8]
["Sep",400,160.53333333333333,199.5,200,160.53333333333333,170.9,null,null,null,"Sep",168.9,199.5,168.9,170.9]
["Oct",400,164.5,206.1,200,164.5,170.6,null,null,null,"Oct",168.6,206.1,168.6,170.6]
["Nov",400,160.5,218.1,200,160.5,175.5,null,null,null,"Nov",168.2,218.1,168.2,175.5]
["Dec",400,161.9,196.7,200,161.9,170.8,null,null,null,"Dec",169.2,196.7,169.2,170.8]
[null,null,null,null,null,null,null,null,null,null,"Annual",{"$f":"AVERAGE(L7:L18)","v":168.86666666666667},{"$f":"MAX(M7:M18)","v":227},{"$f":"AVERAGE(N7:N18)","v":168.56666666666669},{"$f":"MAX(O7:O18)","v":175.5}]
[]
[null,null,null,null,null,null,null,null,null,{"$f":"+A6","v":2022},"mg/Nm3","Monthly 1/2 hourly mean","Monthly 1/2 hourly maximum","Monthly daily mean","Monthly daily maximum"]
[null,null,null,null,null,null,null,null,null,"A2","Jan",161.5,195.8,161.9,168.7]
[null,null,null,null,null,null,null,null,null,null,"Feb",153.5,192.3,153.6,165.7]
[null,null,null,null,null,null,null,null,null,null,"Mar",160.69999999999999,201.3,160.69999999999999,170.1]
[null,null,null,null,null,null,null,null,null,null,"Apr",159.5,196.5,159.5,170.4]
[null,null,null,null,null,null,null,null,null,null,"May",151.19999999999999,193,151.19999999999999,160.6]
[null,null,null,null,null,null,null,null,null,null,"Jun",168.4,198.5,168.4,170.6]
[null,null,null,null,null,null,null,null,null,null,"Jul",165.2,195.8,165.2,170.5]
[null,null,null,null,null,null,null,null,null,null,"Aug",162.1,200.2,162.1,171.7]
[null,null,null,null,null,null,null,null,null,null,"Sep",164.8,192.5,164.8,170]
[null,null,null,null,null,null,null,null,null,null,"Oct",164.1,203.5,164.1,170]
[null,null,null,null,null,null,null,null,null,null,"Nov",158.80000000000001,214,158.80000000000001,169.5]
[null,null,null,null,null,null,null,null,null,null,"Dec",160.4,194.2,160.4,170]
[null,null,null,null,null,null,null,null,null,null,"Annual",{"$f":"AVERAGE(L22:L33)","v":160.85},{"$f":"MAX(M22:M33)","v":214},{"$f":"AVERAGE(N22:N33)","v":160.89166666666665},{"$f":"MAX(O22:O33)","v":171.7}]
[]
[null,null,null,null,null,null,null,null,null,{"$f":"+A6","v":2022},"mg/Nm3","Monthly 1/2 hourly mean","Monthly 1/2 hourly maximum","Monthly daily mean","Monthly daily maximum"]
[null,null,null,null,null,null,null,null,null,"A3","Jan",165.5,212.4,162.30000000000001,170.3]
[null,null,null,null,null,null,null,null,null,null,"Feb",154,206.5,154.69999999999999,163.19999999999999]
[null,null,null,null,null,null,null,null,null,null,"Mar",154.1,196.6,154.1,166.4]
[null,null,null,null,null,null,null,null,null,null,"Apr",163.1,200.1,163.1,168.7]
[null,null,null,null,null,null,null,null,null,null,"May",150.19999999999999,198.4,150.19999999999999,163.30000000000001]
[null,null,null,null,null,null,null,null,null,null,"Jun",155.4,198.7,155.4,164.9]
[null,null,null,null,null,null,null,null,null,null,"Jul",151.4,191.8,151.4,168.8]
[null,null,null,null,null,null,null,null,null,null,"Aug",146.30000000000001,185.5,146.30000000000001,163.4]
[null,null,null,null,null,null,null,null,null,null,"Sep",147.9,181.3,147.9,158.80000000000001]
[null,null,null,null,null,null,null,null,null,null,"Oct",160.80000000000001,195.1,160.80000000000001,169.1]
[null,null,null,null,null,null,null,null,null,null,"Nov",154.5,197.4,154.5,165.1]
["Comments :",null,null,null,null,null,null,null,null,null,"Dec",156.1,194.8,156.1,167.9]
[null,null,null,null,null,null,null,null,null,null,"Annual",{"$f":"AVERAGE(L37:L48)","v":154.94166666666666},{"$f":"MAX(M37:M48)","v":212.4},{"$f":"AVERAGE(N37:N48)","v":154.73333333333332},{"$f":"MAX(O37:O48)","v":170.3}]

{"sheet":"TOC","index":18,"n_rows":49,"n_cols":17,"rows_kept":49,"cut":false,"hidden":false,"merged":[[21,9,33,9],[36,9,48,9],[47,0,47,6],[48,0,51,6],[3,16,7,18],[9,16,11,18],[12,16,15,18],[4,1,4,3],[4,4,4,6],[4,9,4,14],[6,9,18,9]]}
[{"$f":"+'Cover Page'!$B$29","v":"Annual Performance Report 2022"},null,null,null,{"$f":"+'Cover Page'!$B$33","v":"Riverside Resource Recovery Facility"}]
[]
["Monitoring of Total organic carbon emissions",null,null,"Whole Installation",null,null,"See  Notes in Cell Q3",null,null,{"$f":"+A3","v":"Monitoring of Total organic carbon emissions"},null,null,null,"Per Combustion Line",null,null,"Notes:"]
[null,null,null,null,null,null,null,null,null,null,null,null,null,null,null,null,"User to add logic to complete Whole installation, Table A5:G18. From the data in Per Combustion Line, Table J6:O79, subject to No. of lines installed"]
["mg/Nm3","1/2 Hourly Reference Periods",null,null,"Daily Reference Periods"]
[{"$f":"+'Cover Page'!C39","v":2022},"1/2 hourly TOC ELV","Monthly 1/2 hourly mean","Highest 1/2 hourly maximum","Daily TOC ELV","Monthly daily mean","Highest daily maximum",null,null,{"$f":"+A6","v":2022},"mg/Nm3","Monthly 1/2 hourly mean","Monthly 1/2 hourly maximum","Monthly daily mean","Monthly daily maximum"]
["Jan",20,{"$f":"(L7+L22+L37)/3","v":0.39999999999999997},8,10,{"$f":"(N7+N22+N37)/3","v":0.39999999999999997},0.9,null,null,"A1","Jan",0.2,5.0999999999999996,0.2,0.4]
["Feb",20,{"$f":"(L8+L23+L38)/3","v":0.39999999999999997},10.3,10,{"$f":"(N8+N23+N38)/3","v":0.39999999999999997},1,null,null,null,"Feb",0.2,7.5,0.2,0.4]
["Mar",20,0.43333333333333335,8.1,10,0.43333333333333335,1,null,null,null,"Mar",0.2,6.2,0.2,0.5,null,"Whole Installation table A5:G18:"]
["Apr",20,0.39999999999999997,10.3,10,0.39999999999999997,1.4,null,null,null,"Apr",0.2,7.6,0.2,0.4,null,"Mean: for 1/2 hourly and daily periods calculate mean of values across all operational combustion lines for the month"]
["May",20,0.46666666666666662,10.7,10,0.46666666666666662,1,null,null,null,"May",0.2,9.5,0.2,0.4]
["Jun",20,0.39999999999999997,9.6,10,0.39999999999999997,0.9,null,null,null,"Jun",0.2,5.4,0.2,0.3]
["Jul",20,0.39999999999999997,12.6,10,0.39999999999999997,1,null,null,null,"Jul",0.2,5.0999999999999996,0.2,0.4,null,"Maximum: for 1/2 hourly and daily periods use the highest value across all operational combustion lines for the month"]
["Aug",20,0.43333333333333335,11.9,10,0.43333333333333335,1.3,null,null,null,"Aug",0.2,9.1,0.2,0.8]
["Sep",20,0.43333333333333335,9.5,10,0.43333333333333335,1.1000000000000001,null,null,null,"Sep",0.2,5.9,0.2,0.5]
["Oct",20,0.39999999999999997,9.6999999999999993,10,0.39999999999999997,1.2,null,null,null,"Oct",0.2,6.3,0.2,0.5]
["Nov",20,0.43333333333333335,10.1,10,0.43333333333333335,1.1000000000000001,null,null,null,"Nov",0.2,6.3,0.2,0.3]
["Dec",20,0.46666666666666673,9.6999999999999993,10,0.46666666666666673,1.1000000000000001,null,null,null,"Dec",0.2,5.2,0.2,0.5]
[null,null,null,null,null,null,null,null,null,null,"Annual",{"$f":"AVERAGE(L7:L18)","v":0.19999999999999998},{"$f":"MAX(M7:M18)","v":9.5},{"$f":"AVERAGE(N7:N18)","v":0.19999999999999998},{"$f":"MAX(O7:O18)","v":0.8}]
[]
[null,null,null,null,null,null,null,null,null,{"$f":"+A6","v":2022},"mg/Nm3","Monthly 1/2 hourly mean","Monthly 1/2 hourly maximum","Monthly daily mean","Monthly daily maximum"]
[null,null,null,null,null,null,null,null,null,"A2","Jan",0.7,8,0.7,0.9]
[null,null,null,null,null,null,null,null,null,null,"Feb",0.7,9,0.7,1]
[null,null,null,null,null,null,null,null,null,null,"Mar",0.8,8.1,0.8,1]
[null,null,null,null,null,null,null,null,null,null,"Apr",0.7,10.3,0.7,1.4]
[null,null,null,null,null,null,null,null,null,null,"May",0.8,8.1,0.8,1]
[null,null,null,null,null,null,null,null,null,null,"Jun",0.7,9.6,0.7,0.9]
[null,null,null,null,null,null,null,null,null,null,"Jul",0.7,12.6,0.7,1]
[null,null,null,null,null,null,null,null,null,null,"Aug",0.8,11.9,0.8,1.3]
[null,null,null,null,null,null,null,null,null,null,"Sep",0.8,9.5,0.8,1.1000000000000001]
[null,null,null,null,null,null,null,null,null,null,"Oct",0.8,9.6999999999999993,0.8,1.2]
[null,null,null,null,null,null,null,null,null,null,"Nov",0.8,10.1,0.8,1.1000000000000001]
[null,null,null,null,null,null,null,null,null,null,"Dec",0.9,9.6999999999999993,0.9,1.1000000000000001]
[null,null,null,null,null,null,null,null,null,null,"Annual",{"$f":"AVERAGE(L22:L33)","v":0.76666666666666672},{"$f":"MAX(M22:M33)","v":12.6},{"$f":"AVERAGE(N22:N33)","v":0.76666666666666672},{"$f":"MAX(O22:O33)","v":1.4}]
[]
[null,null,null,null,null,null,null,null,null,{"$f":"+A6","v":2022},"mg/Nm3","Monthly 1/2 hourly mean","Monthly 1/2 hourly maximum","Monthly daily mean","Monthly daily maximum"]
[null,null,null,null,null,null,null,null,null,"A3","Jan",0.3,6.8,0.3,0.7]
[null,null,null,null,null,null,null,null,null,null,"Feb",0.3,10.3,0.3,0.6]
[null,null,null,null,null,null,null,null,null,null,"Mar",0.3,7.1,0.3,0.5]
[null,null,null,null,null,null,null,null,null,null,"Apr",0.3,6.9,0.3,0.5]
[null,null,null,null,null,null,null,null,null,null,"May",0.4,10.7,0.4,0.7]
[null,null,null,null,null,null,null,null,null,null,"Jun",0.3,6.1,0.3,0.5]
[null,null,null,null,null,null,null,null,null,null,"Jul",0.3,6.1,0.3,0.5]
[null,null,null,null,null,null,null,null,null,null,"Aug",0.3,6.9,0.3,0.9]
[null,null,null,null,null,null,null,null,null,null,"Sep",0.3,6.1,0.3,0.5]
[null,null,null,null,null,null,null,null,null,null,"Oct",0.2,7.3,0.2,0.4]
[null,null,null,null,null,null,null,null,null,null,"Nov",0.3,7.6,0.3,0.7]
["Comments :",null,null,null,null,null,null,null,null,null,"Dec",0.3,9,0.3,0.7]
[null,null,null,null,null,null,null,null,null,null,"Annual",{"$f":"AVERAGE(L37:L48)","v":0.3},{"$f":"MAX(M37:M48)","v":10.7},{"$f":"AVERAGE(N37:N48)","v":0.3},{"$f":"MAX(O37:O48)","v":0.9}]

{"sheet":"CO 95% 10 min","index":19,"n_rows":49,"n_cols":19,"rows_kept":49,"cut":false,"hidden":false,"merged":[[21,10,33,10],[36,10,48,10],[47,0,47,7],[48,0,51,7],[3,18,7,20],[9,18,11,20],[12,18,15,20],[4,1,4,4],[4,5,4,7],[4,10,4,16],[6,10,18,10]]}
[{"$f":"+'Cover Page'!$B$29","v":"Annual Performance Report 2022"},null,null,null,{"$f":"+'Cover Page'!$B$33","v":"Riverside Resource Recovery Facility"}]
[]
["Monitoring of Carbon Monoxide (10-minute avg)",null,null,null,"Whole Installation",null,null,"See  Notes in Cell S3",null,{"$f":"+A3","v":"Monitoring of Carbon Monoxide (10-minute avg)"},null,null,null,null,"Per Combustion Line",null,"Notes:",null,"Notes:"]
[null,null,null,null,null,null,null,null,null,null,null,null,null,null,null,null,null,null,"User to add logic to complete Whole installation, Table A5:H18. From the data in Per Combustion Line, Table K6:Q79, subject to No. of lines installed"]
["mg/Nm3","10-minute Reference Periods",null,null,null,"Daily Reference Periods"]
[{"$f":"+'Cover Page'!C39","v":2022},"95%ile 10-min avg CO ELV","95%ile 10-min avg maximum","Monthly CO 10-min avg mean","10-min avg maximum","Daily CO ELV","Monthly daily mean","Highest daily maximum",null,null,{"$f":"+A6","v":2022},"mg/Nm3","95%ile 10-min avg maximum","Monthly CO 10-min avg mean","10-min avg maximum","Monthly daily mean","Monthly daily maximum"]
["Jan",150,{"$f":"(M7+M22+M37)/3","v":37.633333333333333},{"$f":"(N7+N22+N37)/3","v":8.4333333333333318},502.90000000000003,50,{"$f":"(P7+P22+P37)/3","v":8.4333333333333318},15.1,null,null,"A1","Jan",53.7,9.1999999999999993,524.20000000000005,9.1999999999999993,15.1]
["Feb",{"$f":"+B7","v":150},{"$f":"(M8+M23+M38)/3","v":50.29999999999999},{"$f":"(N8+N23+N38)/3","v":9.6666666666666661},{"$f":"(O8+O23+O38)/3","v":485.40000000000003},{"$f":"+F7","v":50},{"$f":"(P8+P23+P38)/3","v":9.6666666666666661},18.5,null,null,null,"Feb",40.4,8.9,453.2,8.9,13.2]
["Mar",{"$f":"+B8","v":150},65.066666666666663,10.4,552.86666666666667,{"$f":"+F8","v":50},10.4,19.100000000000001,null,null,null,"Mar",58.9,10.199999999999999,491.2,10.199999999999999,18.8,null,"Whole Installation table A5:H18:"]
["Apr",150,79.3,11.566666666666668,603.6,50,11.566666666666668,29.4,null,null,null,"Apr",116,12.2,525.20000000000005,12.2,19.5,null,"Mean: for 10-min and daily periods use average of all operational combustion lines."]
["May",150,79.36666666666666,10.566666666666666,505.40000000000003,50,10.566666666666666,19.8,null,null,null,"May",53.6,7.5,516.20000000000005,7.5,13.5]
["Jun",150,44.133333333333326,9.4666666666666668,507.06666666666666,50,9.4666666666666668,21.2,null,null,null,"Jun",34.6,8.3000000000000007,509.3,8.3000000000000007,15.4]
["Jul",150,41.300000000000004,10.233333333333334,556.4666666666667,50,10.233333333333334,16.899999999999999,null,null,null,"Jul",29,9.9,573,9.9,14.7,null,"Maximum: for 10-min and daily periods use the highest of all operational combustion lines in any month."]
["Aug",150,59.633333333333326,11.566666666666665,525.5,50,11.566666666666665,21.1,null,null,null,"Aug",25.6,8.1999999999999993,508.5,8.1999999999999993,12.8]
["Sep",150,64.266666666666666,12.366666666666667,541.73333333333323,50,12.366666666666667,25.6,null,null,null,"Sep",44.2,10.1,523.5,10.1,15.3]
["Oct",150,59.533333333333331,11.666666666666666,492.9666666666667,50,11.666666666666666,23.1,null,null,null,"Oct",60.9,11.3,530.9,11.3,18.2]
["Nov",150,47,11.233333333333334,489.90000000000003,50,11.233333333333334,19,null,null,null,"Nov",34,10.8,579,10.8,14.9]
["Dec",150,57.6,12.399999999999999,450.5333333333333,50,12.399999999999999,20.3,null,null,null,"Dec",41.3,10.1,486.8,10.1,17.399999999999999]
[null,null,null,null,null,null,null,null,null,null,null,"Annual",{"$f":"AVERAGE(M7:M18)","v":49.35},{"$f":"AVERAGE(N7:N18)","v":9.7249999999999996},{"$f":"MAX(O7:O18)","v":579},{"$f":"AVERAGE(P7:P18)","v":9.7249999999999996},{"$f":"MAX(Q7:Q18)","v":19.5}]
[]
[null,null,null,null,null,null,null,null,null,null,{"$f":"+A6","v":2022},"mg/Nm3","95%ile 10-min avg maximum","Monthly CO 10-min avg mean","10-min avg maximum","Monthly daily mean","Monthly daily maximum"]
[null,null,null,null,null,null,null,null,null,null,"A2","Jan",30.3,7.7,372.2,7.7,10.7]
[null,null,null,null,null,null,null,null,null,null,null,"Feb",56.8,9.9,433,9.9,18.5]
[null,null,null,null,null,null,null,null,null,null,null,"Mar",47,9.4,491.9,9.4,14.4]
[null,null,null,null,null,null,null,null,null,null,null,"Apr",86.2,9.6999999999999993,857.6,9.6999999999999993,29.4]
[null,null,null,null,null,null,null,null,null,null,null,"May",100.6,12.2,453,12.2,19.8]
[null,null,null,null,null,null,null,null,null,null,null,"Jun",44.5,9.4,531.9,9.4,21.2]
[null,null,null,null,null,null,null,null,null,null,null,"Jul",43.4,10.7,528.5,10.7,16.899999999999999]
[null,null,null,null,null,null,null,null,null,null,null,"Aug",70.599999999999994,13.1,572.6,13.1,21.1]
[null,null,null,null,null,null,null,null,null,null,null,"Sep",48.8,12.1,569.1,12.1,18.600000000000001]
[null,null,null,null,null,null,null,null,null,null,null,"Oct",41.9,12.7,563.9,12.7,18.100000000000001]
[null,null,null,null,null,null,null,null,null,null,null,"Nov",50.6,11.4,482.5,11.4,17.8]
[null,null,null,null,null,null,null,null,null,null,null,"Dec",45.5,12.7,410.5,12.7,17.8]
[null,null,null,null,null,null,null,null,null,null,null,"Annual",{"$f":"AVERAGE(M22:M33)","v":55.516666666666659},{"$f":"AVERAGE(N22:N33)","v":10.916666666666666},{"$f":"MAX(O22:O33)","v":857.6},{"$f":"AVERAGE(P22:P33)","v":10.916666666666666},{"$f":"MAX(Q22:Q33)","v":29.4}]
[]
[null,null,null,null,null,null,null,null,null,null,{"$f":"+A6","v":2022},"mg/Nm3","95%ile 10-min avg maximum","Monthly CO 10-min avg mean","10-min avg maximum","Monthly daily mean","Monthly daily maximum"]
[null,null,null,null,null,null,null,null,null,null,"A3","Jan",28.9,8.4,612.29999999999995,8.4,12.8]
[null,null,null,null,null,null,null,null,null,null,null,"Feb",53.7,10.199999999999999,570,10.199999999999999,18.2]
[null,null,null,null,null,null,null,null,null,null,null,"Mar",89.3,11.6,675.5,11.6,19.100000000000001]
[null,null,null,null,null,null,null,null,null,null,null,"Apr",35.700000000000003,12.8,428,12.8,15.4]
[null,null,null,null,null,null,null,null,null,null,null,"May",83.9,12,547,12,17.899999999999999]
[null,null,null,null,null,null,null,null,null,null,null,"Jun",53.3,10.7,480,10.7,19.7]
[null,null,null,null,null,null,null,null,null,null,null,"Jul",51.5,10.1,567.9,10.1,15.9]
[null,null,null,null,null,null,null,null,null,null,null,"Aug",82.7,13.4,495.4,13.4,20]
[null,null,null,null,null,null,null,null,null,null,null,"Sep",99.8,14.9,532.6,14.9,25.6]
[null,null,null,null,null,null,null,null,null,null,null,"Oct",75.8,11,384.1,11,23.1]
[null,null,null,null,null,null,null,null,null,null,null,"Nov",56.4,11.5,408.2,11.5,19]
["Comments :",null,null,null,null,null,null,null,null,null,null,"Dec",86,14.4,454.3,14.4,20.3]
["Environment Agency explanatory note: The 10-minute average ELV is based on the “95th percentile”. In this case this means that 95% of the 10 minute averages in the relevant 24-hour period (i.e. 137) must be below 150 mg/Nm3, and 5% (i.e. 7) are allowed to be any value above 150 mg/Nm3. Whilst we expect operators to minimise CO emissions at all times, it is perfectly acceptable for the value of the maximum 10-minute average to be above 150 mg/Nm3, provided the 95th percentile ELV has been met for that period. ",null,null,null,null,null,null,null,null,null,null,"Annual",{"$f":"AVERAGE(M37:M48)","v":66.416666666666657},{"$f":"AVERAGE(N37:N48)","v":11.75},{"$f":"MAX(O37:O48)","v":675.5},{"$f":"AVERAGE(P37:P48)","v":11.75},{"$f":"MAX(Q37:Q48)","v":25.6}]

{"sheet":"NH3","index":20,"n_rows":49,"n_cols":17,"rows_kept":49,"cut":false,"hidden":false,"merged":[[21,9,33,9],[36,9,48,9],[47,0,47,6],[48,0,51,6],[3,16,7,18],[9,16,11,18],[12,16,15,18],[4,1,4,3],[4,4,4,6],[4,9,4,14],[6,9,18,9]]}
[{"$f":"+'Cover Page'!$B$29","v":"Annual Performance Report 2022"},null,null,null,{"$f":"+'Cover Page'!$B$33","v":"Riverside Resource Recovery Facility"}]
[]
["Monitoring of Ammnonia emissions ",null,null,"Whole Installation",null,null,"See  Notes in Cell Q3",null,null,{"$f":"+A3","v":"Monitoring of Ammnonia emissions "},null,null,null,"Per Combustion Line",null,null,"Notes:"]
[null,null,null,null,null,null,null,null,null,null,null,null,null,null,null,null,"User to add logic to complete Whole installation, Table A5:G18. From the data in Per Combustion Line, Table J6:O79, subject to No. of lines installed"]
["mg/Nm3","1/2 Hourly Reference Periods",null,null,"Daily Reference Periods"]
[{"$f":"+'Cover Page'!C39","v":2022},"1/2 hourly NH3 ELV","Monthly 1/2 hourly mean","Highest 1/2 hourly maximum","Daily NH3 ELV","Monthly daily mean","Highest daily maximum",null,null,{"$f":"+A6","v":2022},"mg/Nm3","Monthly 1/2 hourly mean","Monthly 1/2 hourly maximum","Monthly daily mean","Monthly daily maximum"]
["Jan",0,{"$f":"(L7+L22+L37)/3","v":0.3666666666666667},2.7,10,{"$f":"(N7+N22+N37)/3","v":0.3666666666666667},0.6,null,null,"A1","Jan",0.4,2.7,0.4,0.5]
["Feb",{"$f":"+B7","v":0},{"$f":"(L8+L23+L38)/3","v":0.3666666666666667},4,{"$f":"+E7","v":10},{"$f":"(N8+N23+N38)/3","v":0.3666666666666667},0.6,null,null,null,"Feb",0.4,4,0.4,0.6]
["Mar",{"$f":"+B8","v":0},0.3666666666666667,2.4,{"$f":"+E8","v":10},0.3666666666666667,0.5,null,null,null,"Mar",0.4,2.4,0.4,0.5,null,"Whole Installation table A5:G18:"]
["Apr",0,0.39999999999999997,6.2,5.5,0.39999999999999997,0.6,null,null,null,"Apr",0.4,2.6,0.4,0.5,null,"Mean: for 1/2 hourly and daily periods calculate mean of values across all operational combustion lines for the month"]
["May",0,0.39999999999999997,5.5,5.5,0.39999999999999997,0.7,null,null,null,"May",0.4,5.4,0.4,0.6]
["Jun",0,0.43333333333333335,2.8,5.5,0.43333333333333335,0.6,null,null,null,"Jun",0.4,2,0.4,0.5]
["Jul",0,0.43333333333333335,1.9,5.5,0.43333333333333335,0.9,null,null,null,"Jul",0.5,1.9,0.5,0.9,null,"Maximum: for 1/2 hourly and daily periods use the highest value across all operational combustion lines for the month"]
["Aug",0,0.5,5.0999999999999996,5.5,0.5,0.9,null,null,null,"Aug",0.6,5.0999999999999996,0.6,0.9]
["Sep",0,0.43333333333333335,2.4,5.5,0.43333333333333335,0.6,null,null,null,"Sep",0.5,2.4,0.5,0.6]
["Oct",0,0.46666666666666662,5.2,5.5,0.46666666666666662,0.9,null,null,null,"Oct",0.5,5.2,0.5,0.9]
["Nov",0,0.46666666666666662,2.2999999999999998,5.5,0.46666666666666662,0.7,null,null,null,"Nov",0.5,2.2999999999999998,0.5,0.7]
["Dec",0,0.46666666666666662,4.5999999999999996,5.5,0.46666666666666662,0.6,null,null,null,"Dec",0.5,3.5,0.5,0.6]
[null,null,null,null,null,null,null,null,null,null,"Annual",{"$f":"AVERAGE(L7:L18)","v":0.45833333333333331},{"$f":"MAX(M7:M18)","v":5.4},{"$f":"AVERAGE(N7:N18)","v":0.45833333333333331},{"$f":"MAX(O7:O18)","v":0.9}]
[]
[null,null,null,null,null,null,null,null,null,{"$f":"+A6","v":2022},"mg/Nm3","Monthly 1/2 hourly mean","Monthly 1/2 hourly maximum","Monthly daily mean","Monthly daily maximum"]
[null,null,null,null,null,null,null,null,null,"A2","Jan",0.3,2.2999999999999998,0.3,0.4]
[null,null,null,null,null,null,null,null,null,null,"Feb",0.3,3.6,0.3,0.4]
[null,null,null,null,null,null,null,null,null,null,"Mar",0.3,1.4,0.3,0.4]
[null,null,null,null,null,null,null,null,null,null,"Apr",0.3,6.2,0.3,0.6]
[null,null,null,null,null,null,null,null,null,null,"May",0.3,5.5,0.3,0.5]
[null,null,null,null,null,null,null,null,null,null,"Jun",0.4,2.8,0.4,0.6]
[null,null,null,null,null,null,null,null,null,null,"Jul",0.3,1.7,0.3,0.4]
[null,null,null,null,null,null,null,null,null,null,"Aug",0.4,1.3,0.4,0.5]
[null,null,null,null,null,null,null,null,null,null,"Sep",0.3,1.5,0.3,0.4]
[null,null,null,null,null,null,null,null,null,null,"Oct",0.4,1.9,0.4,0.5]
[null,null,null,null,null,null,null,null,null,null,"Nov",0.4,1.5,0.4,0.5]
[null,null,null,null,null,null,null,null,null,null,"Dec",0.4,1.6,0.4,0.5]
[null,null,null,null,null,null,null,null,null,null,"Annual",{"$f":"AVERAGE(L22:L33)","v":0.34166666666666662},{"$f":"MAX(M22:M33)","v":6.2},{"$f":"AVERAGE(N22:N33)","v":0.34166666666666662},{"$f":"MAX(O22:O33)","v":0.6}]
[]
[null,null,null,null,null,null,null,null,null,{"$f":"+A6","v":2022},"mg/Nm3","Monthly 1/2 hourly mean","Monthly 1/2 hourly maximum","Monthly daily mean","Monthly daily maximum"]
[null,null,null,null,null,null,null,null,null,"A3","Jan",0.4,2.2999999999999998,0.4,0.6]
[null,null,null,null,null,null,null,null,null,null,"Feb",0.4,2.9,0.4,0.6]
[null,null,null,null,null,null,null,null,null,null,"Mar",0.4,2.1,0.4,0.5]
[null,null,null,null,null,null,null,null,null,null,"Apr",0.5,1.6,0.5,0.6]
[null,null,null,null,null,null,null,null,null,null,"May",0.5,4.9000000000000004,0.5,0.7]
[null,null,null,null,null,null,null,null,null,null,"Jun",0.5,1.8,0.5,0.6]
[null,null,null,null,null,null,null,null,null,null,"Jul",0.5,1.6,0.5,0.6]
[null,null,null,null,null,null,null,null,null,null,"Aug",0.5,2.1,0.5,0.8]
[null,null,null,null,null,null,null,null,null,null,"Sep",0.5,1.7,0.5,0.6]
[null,null,null,null,null,null,null,null,null,null,"Oct",0.5,3.2,0.5,0.7]
[null,null,null,null,null,null,null,null,null,null,"Nov",0.5,1.7,0.5,0.7]
["Comments :",null,null,null,null,null,null,null,null,null,"Dec",0.5,4.5999999999999996,0.5,0.7]
["An indicated ELV value of zero in the table above means that no ammonia limit is set in the permit.  ",null,null,null,null,null,null,null,null,null,"Annual",{"$f":"AVERAGE(L37:L48)","v":0.47500000000000003},{"$f":"MAX(M37:M48)","v":4.9000000000000004},{"$f":"AVERAGE(N37:N48)","v":0.47500000000000003},{"$f":"MAX(O37:O48)","v":0.8}]